Workbook

Sheet Indice
A5: INDICE CUADROS GASTOS DEL PRESUPUESTO GENERAL DE LA NACIÓN - PGN
A7: CUADROS
A8: Cuadro No. 1. Ejecución del Presupuesto General de la Nación
A9: Cuadro No. 2. Ejecución del presupuesto recursos Nación
A10: Cuadro No. 3. Ejecución del presupuesto recursos Propios
A11: Cuadro No. 4. Ejecución Presupuesto General de la Nación por sectores
A12: Cuadro No. 5. Ejecución del presupuesto recursos Nación por sectores
A13: Cuadro No. 6. Ejecución del presupuesto recursos Propios por sectores
A14: Cuadro No. 7. Ejecución del Presupuesto General de la Nación detallado por sector, entidad y rubro presupuestal
A15: Cuadro No. 8. Rezago presupuestal del Presupuesto General de la Nación en 2024
A16: Cuadro No. 9. Reservas presupuestales del PGN de 2024 que se ejecutan en el 2025
A17: Cuadro No. 10. Cuentas por pagar del PGN de 2024 que se ejecutan en el 2025

Sheet CUA1
A1: Cuadro No. 1
A2: Ejecución del Presupuesto General de la Nación
A3: Acumulada a Abril 2025
A4: Miles de millones de pesos corrientes
B5: Concepto | C5: Apropiación Vigente | D5: Compromiso | E5: Obligación | F5: Pago | G5: Apropiación sin comprometer | H5: Porcentaje de ejecución
C6: Vigente | H6: Comp./Apro. | I6: Oblig./Apro. | J6: Pago/Apro. | K6: Oblig./Comp. | L6: Pago/Oblig.
C7: (1) | D7: (2) | E7: (3) | F7: (4) | G7: (5)=(1-2) | H7: (6)=(2/1) | I7: (7)=(3/1) | J7: (8)=(4/1) | K7: (9)=(3/2) | L7: (10)=(4/3)
A8: I. | B8: FUNCIONAMIENTO | C8: 329236.8079 | D8: 110521.5166 | E8: 82495.45643 | F8: 81306.03748 | G8: 218715.2912 | H8: 33.56900382 | I8: 25.05657158 | J8: 24.6953061 | K8: 74.64198732 | L8: 98.55820066
B9: Gastos de Personal | C9: 60166.04465 | D9: 15921.50311 | E9: 14954.79071 | F9: 14919.92591 | G9: 44244.54154 | H9: 26.46260561 | I9: 24.85586479 | J9: 24.79791716 | K9: 93.92825922 | L9: 99.76686536
B10: Adquisición de Bienes y Servicios | C10: 17099.28229 | D10: 9287.61534 | E10: 3146.115142 | F10: 3079.284588 | G10: 7811.666946 | H10: 54.31581972 | I10: 18.3991064 | J10: 18.00826804 | K10: 33.87430493 | L10: 97.87577534
B11: Transferencias | C11: 247526.0608 | D11: 83653.53106 | E11: 63769.26496 | F11: 62743.69223 | G11: 163872.5297 | H11: 33.79584792 | I11: 25.76264687 | J11: 25.34831768 | K11: 76.23021305 | L11: 98.39174447
B12: Gastos de Comercialización y Producción | C12: 2050.774355 | D12: 859.2291033 | E12: 338.7226635 | F12: 277.058738 | G12: 1191.545251 | H12: 41.89778858 | I12: 16.51681779 | J12: 13.50995722 | K12: 39.42169349 | L12: 81.79515807
B13: Adquisición de Activos Financieros | C13: 759.1561267 | D13: 525.1734371 | E13: 20.35368074 | F13: 20.35368074 | G13: 233.9826896 | H13: 69.17858114 | I13: 2.681092864 | J13: 2.681092864 | K13: 3.875611236 | L13: 100
B14: Disminución de Pasivos | C14: 359.3819416 | D14: 96.82205598 | E14: 89.45781321 | F14: 89.20592036 | G14: 262.5598856 | H14: 26.9412691 | I14: 24.89212808 | J14: 24.82203751 | K14: 92.39404422 | L14: 99.71842274
B15: Gastos por Tributos, Multas, Sanciones e Intereses de Mora | C15: 1276.107733 | D15: 177.6425227 | E15: 176.7514673 | F15: 176.5164194 | G15: 1098.465211 | H15: 13.92065247 | I15: 13.85082644 | J15: 13.83240731 | K15: 99.49839969 | L15: 99.86701787
A16: II. | B16: SERVICIO DE LA DEUDA | C16: 112605.1864 | D16: 27070.7324 | E16: 26806.85035 | F16: 21538.93395 | G16: 85534.454 | H16: 24.04039571 | I16: 23.80605299 | J16: 19.12783473 | K16: 99.02521274 | L16: 80.34861862
B17: Servicio de la Deuda Pública Externa | C17: 41029.422 | D17: 6788.378876 | E17: 6535.358582 | F17: 5699.775651 | G17: 34241.04312 | H17: 16.54514869 | I17: 15.92846856 | J17: 13.89192285 | K17: 96.27274349 | L17: 87.2144287
B18: Principal | C18: 21772.59 | D18: 2886.69209 | E18: 2884.052109 | F18: 2795.417821 | G18: 18885.89791 | H18: 13.25837712 | I18: 13.24625186 | J18: 12.83916071 | K18: 99.90854648 | L18: 96.92674459
B19: Intereses | C19: 19054.45816 | D19: 3815.382734 | E19: 3601.038344 | F19: 2870.350813 | G19: 15239.07542 | H19: 20.02356983 | I19: 18.89866568 | J19: 15.06393301 | K19: 94.38209991 | L19: 79.70897664
B20: Comisiones y Otros Gastos | C20: 202.3738446 | D20: 86.30405106 | E20: 50.26812917 | F20: 34.00701751 | G20: 116.0697935 | H20: 42.6458524 | I20: 24.83924208 | J20: 16.80405765 | K20: 58.24538773 | L20: 67.65124955
B21: Servicio de la Deuda Pública Interna | C21: 71575.76439 | D21: 20282.35352 | E21: 20271.49176 | F21: 15839.1583 | G21: 51293.41087 | H21: 28.33690103 | I21: 28.32172585 | J21: 22.1292199 | K21: 99.94644725 | L21: 78.13513916
B22: Principal | C22: 28993.66678 | D22: 5866.350843 | E22: 5866.350843 | F22: 1486.897772 | G22: 23127.31593 | H22: 20.23321468 | I22: 20.23321468 | J22: 5.128353662 | K22: 100 | L22: 25.34621286
B23: Intereses | C23: 40380.19015 | D23: 14124.7683 | E23: 14124.7683 | F23: 14071.8879 | G23: 26255.42185 | H23: 34.97944969 | I23: 34.97944969 | J23: 34.84849341 | K23: 100 | L23: 99.62561939
B24: Comisiones y Otros Gastos | C24: 294.8098498 | D24: 41.84504109 | E24: 30.98328395 | F24: 30.98328395 | G24: 252.9648087 | H24: 14.19390876 | I24: 10.50958235 | J24: 10.50958235 | K24: 74.04290483 | L24: 100
B25: Fondo de contingencias | C25: 1907.097618 | D25: 249.3893395 | E25: 249.3893395 | F25: 249.3893395 | G25: 1657.708279 | H25: 13.07690478 | I25: 13.07690478 | J25: 13.07690478 | K25: 100 | L25: 100
A26: III. | B26: INVERSIÓN | C26: 83961.13818 | D26: 40610.41137 | E26: 10269.91746 | F26: 10123.1084 | G26: 43350.72682 | H26: 48.36810487 | I26: 12.23175112 | J26: 12.05689754 | K26: 25.28887818 | L26: 98.57049427
A27: IV. | B27: TOTAL (I + II + III) | C27: 525803.1325 | D27: 178202.6604 | E27: 119572.2242 | F27: 112968.0798 | G27: 347600.4721 | H27: 33.89151745 | I27: 22.74087331 | J27: 21.48486246 | K27: 67.09901186 | L27: 94.47685744
A28: V. | B28: TOTAL SIN DEUDA (I + III) | C28: 413197.9461 | D28: 151131.928 | E28: 92765.37389 | F28: 91429.14589 | G28: 262066.0181 | H28: 36.57615664 | I28: 22.45058931 | J28: 22.12720241 | K28: 61.38039468 | L28: 98.55956167
A29: Fuente: Dirección General del Presupuesto Público Nacional- Subdirección de Análisis y Consolidación Presupuestal
C32: =+C27-'CUA2'!C27-'CUA3'!C25 -> -5.820766091e-11 | D32: =+D27-'CUA2'!D27-'CUA3'!D25 -> 5.09317033e-11 | E32: =+E27-'CUA2'!E27-'CUA3'!E25 -> -1.455191523e-11 | F32: =+F27-'CUA2'!F27-'CUA3'!F25 -> -1.273292582e-11 | G32: =+G27-'CUA2'!G27-'CUA3'!G25 -> -5.456968211e-11

Sheet CUA2
A1: Cuadro No. 2
A2: Ejecución del presupuesto recursos Nación
A3: =+'CUA1'!A3:L3 -> Acumulada a Abril 2025
A4: Miles de millones de pesos corrientes
B5: Concepto | C5: Apropiación Vigente | D5: Compromiso | E5: Obligación | F5: Pago | G5: Apropiación sin comprometer | H5: Porcentaje de ejecución
C6: Vigente | H6: Comp./Apro. | I6: Oblig./Apro. | J6: Pago/Apro. | K6: Oblig./Comp. | L6: Pago/Oblig.
C7: (1) | D7: (2) | E7: (3) | F7: (4) | G7: (5)=(1-2) | H7: (6)=(2/1) | I7: (7)=(3/1) | J7: (8)=(4/1) | K7: (9)=(3/2) | L7: (10)=(4/3)
A8: I. | B8: FUNCIONAMIENTO | C8: 316077.2011 | D8: 104803.3506 | E8: 78048.73082 | F8: 77076.04129 | G8: 211273.8505 | H8: 33.15751665 | I8: 24.69293279 | J8: 24.38519483 | K8: 74.47159885 | L8: 98.75374075
B9: Gastos de Personal | C9: 56556.47829 | D9: 14989.75763 | E9: 14101.74068 | F9: 14075.45746 | G9: 41566.72066 | H9: 26.50405062 | I9: 24.93390872 | J9: 24.88743622 | K9: 94.07584179 | L9: 99.81361726
B10: Adquisición de Bienes y Servicios | C10: 15792.48981 | D10: 8525.243977 | E10: 2864.742483 | F10: 2803.749334 | G10: 7267.245834 | H10: 53.98289997 | I10: 18.13990395 | J10: 17.75368778 | K10: 33.6030557 | L10: 97.8709029
B11: Transferencias | C11: 241490.6488 | D11: 80481.52014 | E11: 60833.43914 | F11: 59948.85475 | G11: 161009.1287 | H11: 33.32697168 | I11: 25.19080529 | J11: 24.82450358 | K11: 75.5868416 | L11: 98.5458912
B12: Gastos de Comercialización y Producción | C12: 113.326023 | D12: 56.94387605 | E12: 8.196680933 | F12: 7.668961097 | G12: 56.38214695 | H12: 50.24783765 | I12: 7.232832068 | J12: 6.767166882 | K12: 14.39431507 | L12: 93.56178629
B13: Adquisición de Activos Financieros | C13: 630.895 | D13: 502.8677892 | E13: 1.316373905 | F13: 1.316373905 | G13: 128.0272108 | H13: 79.70704938 | I13: 0.2086518208 | J13: 0.2086518208 | K13: 0.2617733594 | L13: 100
B14: Disminución de Pasivos | C14: 342.6809416 | D14: 95.09109632 | E14: 87.80543136 | F14: 87.5625385 | G14: 247.5898453 | H14: 27.74916395 | I14: 25.62308571 | J14: 25.55220553 | K14: 92.33822594 | L14: 99.72337377
B15: Gastos por Tributos, Multas, Sanciones e Intereses de Mora | C15: 1150.68221 | D15: 151.9260574 | E15: 151.4900345 | F15: 151.4318719 | G15: 998.756153 | H15: 13.20312907 | I15: 13.16523651 | J15: 13.16018189 | K15: 99.71300319 | L15: 99.96160631
A16: II. | B16: SERVICIO DE LA DEUDA | C16: 112605.1864 | D16: 27070.7324 | E16: 26806.85035 | F16: 21538.93395 | G16: 85534.454 | H16: 24.04039571 | I16: 23.80605299 | J16: 19.12783473 | K16: 99.02521274 | L16: 80.34861862
B17: Servicio de la Deuda Pública Externa | C17: 41029.422 | D17: 6788.378876 | E17: 6535.358582 | F17: 5699.775651 | G17: 34241.04312 | H17: 16.54514869 | I17: 15.92846856 | J17: 13.89192285 | K17: 96.27274349 | L17: 87.2144287
B18: Principal | C18: 21772.59 | D18: 2886.69209 | E18: 2884.052109 | F18: 2795.417821 | G18: 18885.89791 | H18: 13.25837712 | I18: 13.24625186 | J18: 12.83916071 | K18: 99.90854648 | L18: 96.92674459
B19: Intereses | C19: 19054.45816 | D19: 3815.382734 | E19: 3601.038344 | F19: 2870.350813 | G19: 15239.07542 | H19: 20.02356983 | I19: 18.89866568 | J19: 15.06393301 | K19: 94.38209991 | L19: 79.70897664
B20: Comisiones y Otros Gastos | C20: 202.3738446 | D20: 86.30405106 | E20: 50.26812917 | F20: 34.00701751 | G20: 116.0697935 | H20: 42.6458524 | I20: 24.83924208 | J20: 16.80405765 | K20: 58.24538773 | L20: 67.65124955
B21: Servicio de la Deuda Pública Interna | C21: 71575.76439 | D21: 20282.35352 | E21: 20271.49176 | F21: 15839.1583 | G21: 51293.41087 | H21: 28.33690103 | I21: 28.32172585 | J21: 22.1292199 | K21: 99.94644725 | L21: 78.13513916
B22: Principal | C22: 28993.66678 | D22: 5866.350843 | E22: 5866.350843 | F22: 1486.897772 | G22: 23127.31593 | H22: 20.23321468 | I22: 20.23321468 | J22: 5.128353662 | K22: 100 | L22: 25.34621286
B23: Intereses | C23: 40380.19015 | D23: 14124.7683 | E23: 14124.7683 | F23: 14071.8879 | G23: 26255.42185 | H23: 34.97944969 | I23: 34.97944969 | J23: 34.84849341 | K23: 100 | L23: 99.62561939
B24: Comisiones y Otros Gastos | C24: 294.8098498 | D24: 41.84504109 | E24: 30.98328395 | F24: 30.98328395 | G24: 252.9648087 | H24: 14.19390876 | I24: 10.50958235 | J24: 10.50958235 | K24: 74.04290483 | L24: 100
B25: Fondo de contingencias | C25: 1907.097618 | D25: 249.3893395 | E25: 249.3893395 | F25: 249.3893395 | G25: 1657.708279 | H25: 13.07690478 | I25: 13.07690478 | J25: 13.07690478 | K25: 100 | L25: 100
A26: III. | B26: INVERSIÓN | C26: 69797.12478 | D26: 33924.12265 | E26: 8572.864001 | F26: 8504.180456 | G26: 35873.00213 | H26: 48.60389701 | I26: 12.28254606 | J26: 12.18414151 | K26: 25.27070218 | L26: 99.19882614
A27: IV. | B27: TOTAL (I + II + III) | C27: 498479.5123 | D27: 165798.2056 | E27: 113428.4452 | F27: 107119.1557 | G27: 332681.3066 | H27: 33.26078636 | I27: 22.75488608 | J27: 21.48917921 | K27: 68.41355415 | L27: 94.43764793
A28: V. | B28: TOTAL SIN DEUDA (I + III) | C28: 385874.3259 | D28: 138727.4732 | E28: 86621.59482 | F28: 85580.22175 | G28: 247146.8527 | H28: 35.951465 | I28: 22.44813635 | J28: 22.17826272 | K28: 62.44011573 | L28: 98.79779046
A29: Fuente: Dirección General del Presupuesto Público Nacional- Subdirección de Análisis y Consolidación Presupuestal
C31: =+C27-'CUA5'!B8 -> 0 | D31: =+D28+'CUA3'!D26-'CUA1'!D28 -> 0 | E31: =+E28+'CUA3'!E26-'CUA1'!E28 -> 0 | F31: =+F28+'CUA3'!F26-'CUA1'!F28 -> 0 | G31: =+G28+'CUA3'!G26-'CUA1'!G28 -> 0
C37: =+C8/'CUA1'!C8 -> 0.9600299648
C38: =+C16/'CUA1'!C16 -> 1

Sheet CUA3
A1: Cuadro No. 3
A2: Ejecución del presupuesto recursos Propios
A3: =+'CUA1'!A3:L3 -> Acumulada a Abril 2025
A4: Miles de millones de pesos corrientes
B5: Concepto | C5: Apropiación Vigente | D5: Compromiso | E5: Obligación | F5: Pago | G5: Apropiación sin comprometer | H5: Porcentaje de ejecución
C6: Vigente | H6: Comp./Apro. | I6: Oblig./Apro. | J6: Pago/Apro. | K6: Oblig./Comp. | L6: Pago/Oblig.
C7: (1) | D7: (2) | E7: (3) | F7: (4) | G7: (5)=(1-2) | H7: (6)=(2/1) | I7: (7)=(3/1) | J7: (8)=(4/1) | K7: (9)=(3/2) | L7: (10)=(4/3)
A8: I. | B8: FUNCIONAMIENTO | C8: 13159.60679 | D8: 5718.166058 | E8: 4446.725608 | F8: 4229.996189 | G8: 7441.440729 | H8: 43.45240819 | I8: 33.79071792 | J8: 32.14378862 | K8: 77.76489111 | L8: 95.12608967
B9: Gastos de Personal | C9: 3609.566354 | D9: 931.7454731 | E9: 853.0500334 | F9: 844.4684465 | G9: 2677.820881 | H9: 25.81322468 | I9: 23.63303371 | J9: 23.39528806 | K9: 91.55397671 | L9: 98.9940113
B10: Adquisición de Bienes y Servicios | C10: 1306.792475 | D10: 762.3713629 | E10: 281.3726589 | F10: 275.5352541 | G10: 544.4211124 | H10: 58.33913015 | I10: 21.53154875 | J10: 21.0848516 | K10: 36.90755878 | L10: 97.92538309
B11: Transferencias | C11: 6035.411976 | D11: 3172.010922 | E11: 2935.825812 | F11: 2794.837476 | G11: 2863.401055 | H11: 52.5566595 | I11: 48.64333742 | J11: 46.30731898 | K11: 92.55408902 | L11: 95.19766003
B12: Gastos de Comercialización y Producción | C12: 1937.448332 | D12: 802.2852273 | E12: 330.5259825 | F12: 269.3897769 | G12: 1135.163105 | H12: 41.40937408 | I12: 17.05986049 | J12: 13.90435928 | K12: 41.19806414 | L12: 81.50335863
B13: Adquisición de Activos Financieros | C13: 128.2611267 | D13: 22.30564794 | E13: 19.03730683 | F13: 19.03730683 | G13: 105.9554788 | H13: 17.39080929 | I13: 14.84261624 | J13: 14.84261624 | K13: 85.34747289 | L13: 100
B14: Disminución de Pasivos | C14: 16.701 | D14: 1.730959666 | E14: 1.652381854 | F14: 1.643381854 | G14: 14.97004033 | H14: 10.36440732 | I14: 9.89390967 | J14: 9.840020681 | K14: 95.46044812 | L14: 99.45533171
B15: Gastos por Tributos, Multas, Sanciones e Intereses de Mora | C15: 125.4255228 | D15: 25.71646527 | E15: 25.26143275 | F15: 25.08454749 | G15: 99.70905758 | H15: 20.50337498 | I15: 20.14058397 | J15: 19.99955585 | K15: 98.23057907 | L15: 99.29978138
A16: II. | B16: SERVICIO DE LA DEUDA | C16: 0 | D16: 0 | E16: 0 | F16: 0 | G16: 0 | H16: 0 | I16: 0 | J16: 0 | K16: 0 | L16: 0
B17: Servicio de la Deuda Pública Externa | C17: 0 | D17: 0 | E17: 0 | F17: 0 | G17: 0 | H17: 0 | I17: 0 | J17: 0 | K17: 0 | L17: 0
B18: Principal | C18: 0 | D18: 0 | E18: 0 | F18: 0 | G18: 0 | H18: 0 | I18: 0 | J18: 0 | K18: 0 | L18: 0
B19: Intereses | C19: 0 | D19: 0 | E19: 0 | F19: 0 | G19: 0 | H19: 0 | I19: 0 | J19: 0 | K19: 0 | L19: 0
B20: Comisiones y Otros Gastos | C20: 0 | D20: 0 | E20: 0 | F20: 0 | G20: 0 | H20: 0 | I20: 0 | J20: 0 | K20: 0 | L20: 0
B21: Servicio de la Deuda Pública Interna | C21: 0 | D21: 0 | E21: 0 | F21: 0 | G21: 0 | H21: 0 | I21: 0 | J21: 0 | K21: 0 | L21: 0
B22: Principal | H22: 0 | I22: 0 | J22: 0 | K22: 0 | L22: 0
B23: Fondo de Contingencias | C23: 0 | D23: 0 | E23: 0 | F23: 0 | G23: 0 | H23: 0 | I23: 0 | J23: 0 | K23: 0 | L23: 0
A24: III. | B24: INVERSIÓN | C24: 14164.01341 | D24: 6686.288721 | E24: 1697.05346 | F24: 1618.927947 | G24: 7477.724685 | H24: 47.20617335 | I24: 11.98144489 | J24: 11.42986737 | K24: 25.38109751 | L24: 95.39640236
A25: IV. | B25: TOTAL (I + II + III) | C25: 27323.62019 | D25: 12404.45478 | E25: 6143.779068 | F25: 5848.924136 | G25: 14919.16541 | H25: 45.39828431 | I25: 22.48523082 | J25: 21.40610979 | K25: 49.52881185 | L25: 95.20075626
A26: V. | B26: TOTAL SIN DEUDA (I + III) | C26: 27323.62019 | D26: 12404.45478 | E26: 6143.779068 | F26: 5848.924136 | G26: 14919.16541 | H26: 45.39828431 | I26: 22.48523082 | J26: 21.40610979 | K26: 49.52881185 | L26: 95.20075626
A27: Fuente: Dirección General del Presupuesto Público Nacional- Subdirección de Análisis y Consolidación Presupuestal
C30: =+C25-'CUA6'!B8 -> 0 | D30: =+D25-'CUA6'!C8 -> 0 | E30: =+E25-'CUA6'!D8 -> 0 | F30: =+F25-'CUA6'!E8 -> 0
C34: =+C8/'CUA1'!C8 -> 0.03997003516
C35: =+C24/'CUA1'!C26 -> 0.1686972534

Sheet CUA4
A1: Cuadro No. 4
A2: Ejecución Presupuesto General de la Nación por sectores
A3: =+'CUA1'!A3:L3 -> Acumulada a Abril 2025
A4: Miles de millones de pesos
A5: Sector | B5: Apropiación Vigente | C5: Compromiso | D5: Obligación | E5: Pago | F5: Apropiación sin comprometer | G5: Porcentaje de ejecución
B6: Vigente | G6: Comp./Apro. | H6: Oblig./Apro. | I6: Pago/Apro. | J6: Oblig./Comp. | K6: Pago/Oblig.
B7: (1) | C7: (2) | D7: (3) | E7: (4) | F7: (5)=(1-2) | G7: (6)=(2/1) | H7: (7)=(3/1) | I7: (8)=(4/1) | J7: (9)=(3/2) | K7: (10)=(4/3)
A8: TOTAL PGN | B8: 525803.1325 | C8: 178202.6604 | D8: 119572.2242 | E8: 112968.0798 | F8: 347600.4721 | G8: 33.89151745 | H8: 22.74087331 | I8: 21.48486246 | J8: 67.09901186 | K8: 94.47685744
A9: SERVICIO DE LA DEUDA PÚBLICA NACIONAL | B9: 109828.422 | C9: 26622.87235 | D9: 26358.9903 | E9: 21091.0739 | F9: 83205.54965 | G9: 24.24042144 | H9: 24.00015389 | I9: 19.20365741 | J9: 99.0088145 | K9: 80.01472615
A10: EDUCACIÓN | B10: 79496.47566 | C10: 40405.39684 | D10: 24604.97034 | E10: 23763.40061 | F10: 39091.07882 | G10: 50.82665176 | H10: 30.95102032 | I10: 29.89239512 | J10: 60.89525722 | K10: 96.5796759
A11: SALUD Y PROTECCIÓN SOCIAL | B11: 67161.78908 | C11: 22488.32973 | D11: 19579.40537 | E11: 19575.25482 | F11: 44673.45934 | G11: 33.48381579 | H11: 29.1525965 | I11: 29.14641657 | J11: 87.06473804 | K11: 99.97880145
A12: DEFENSA Y POLICÍA | B12: 59962.07967 | C12: 19368.16266 | D12: 14787.82096 | E12: 14674.00339 | F12: 40593.91701 | G12: 32.3006853 | H12: 24.66195476 | I12: 24.47213884 | J12: 76.35118118 | K12: 99.23032899
A13: TRABAJO | B13: 53404.42189 | C13: 10899.15535 | D13: 9273.332258 | E13: 9254.623649 | F13: 42505.26654 | G13: 20.40871329 | H13: 17.36435286 | I13: 17.32932091 | J13: 85.08303591 | K13: 99.79825365
A14: HACIENDA | B14: 35725.33446 | C14: 6988.04604 | D14: 4305.696401 | E14: 4292.614753 | F14: 28737.28842 | G14: 19.56047759 | H14: 12.05222139 | I14: 12.0156041 | J14: 61.61516934 | K14: 99.69617812
A15: TRANSPORTE | B15: 17386.79467 | C15: 10362.34107 | D15: 2158.75128 | E15: 2075.929257 | F15: 7024.453602 | G15: 59.59891553 | H15: 12.41603942 | I15: 11.93968927 | J15: 20.83265997 | K15: 96.16342912
A16: IGUALDAD Y EQUIDAD | B16: 12117.47558 | C16: 8281.556768 | D16: 2475.840877 | E16: 2474.548343 | F16: 3835.918814 | G16: 68.34391134 | H16: 20.43198569 | I16: 20.421319 | J16: 29.89583899 | K16: 99.94779417
A17: MINAS Y ENERGÍA | B17: 11214.44332 | C17: 4331.178808 | D17: 2343.600165 | E17: 2337.016759 | F17: 6883.26451 | G17: 38.62143385 | H17: 20.89805172 | I17: 20.83934701 | J17: 54.10998411 | K17: 99.71909005
A18: RAMA JUDICIAL | B18: 10414.88358 | C18: 2771.461666 | D18: 2262.044685 | E18: 2248.085944 | F18: 7643.421912 | G18: 26.6105871 | H18: 21.71934682 | I18: 21.58531996 | J18: 81.6191944 | K18: 99.38291488
A19: INCLUSIÓN SOCIAL Y RECONCILIACIÓN | B19: 10346.16828 | C19: 2302.660458 | D19: 1572.173952 | E19: 1550.486792 | F19: 8043.507826 | G19: 22.25616668 | H19: 15.19571216 | I19: 14.98609677 | J19: 68.27641249 | K19: 98.62056225
A20: VIVIENDA, CIUDAD Y TERRITORIO | B20: 8741.398452 | C20: 4488.036893 | D20: 1631.277722 | E20: 1631.00747 | F20: 4253.361558 | G20: 51.34232146 | H20: 18.66151887 | I20: 18.65842724 | J20: 36.34724403 | K20: 99.98343309
A21: FISCALÍA | B21: 7137.16978 | C21: 2343.790946 | D21: 1782.467596 | E21: 1771.246292 | F21: 4793.378834 | G21: 32.83922084 | H21: 24.97443176 | I21: 24.81720832 | J21: 76.05062214 | K21: 99.3704624
A22: JUSTICIA Y DEL DERECHO | B22: 5524.864701 | C22: 1842.375296 | D22: 975.3892093 | E22: 962.9548819 | F22: 3682.489404 | G22: 33.34697583 | H22: 17.65453567 | I22: 17.42947446 | J22: 52.9419392 | K22: 98.72519326
A23: AGRICULTURA Y DESARROLLO RURAL | B23: 5244.040437 | C23: 1679.967975 | D23: 441.4931228 | E23: 424.4396426 | F23: 3564.072462 | G23: 32.03575554 | H23: 8.418949626 | I23: 8.093752283 | J23: 26.27985351 | K23: 96.13731692
A24: REGISTRADURÍA | B24: 4592.600812 | C24: 562.0742218 | D24: 264.2206639 | E24: 263.668012 | F24: 4030.52659 | G24: 12.23869099 | H24: 5.753181578 | I24: 5.741148051 | J24: 47.00814476 | K24: 99.79083701
A25: INTERIOR | B25: 4475.913706 | C25: 2270.523236 | D25: 745.8334239 | E25: 741.4227528 | F25: 2205.390469 | G25: 50.72759185 | H25: 16.66326638 | I25: 16.56472402 | J25: 32.84852636 | K25: 99.40862518
A26: ORGANISMOS DE CONTROL | B26: 4415.918145 | C26: 1236.16276 | D26: 957.9448444 | E26: 954.2832985 | F26: 3179.755385 | G26: 27.993335 | H26: 21.69299369 | I26: 21.61007671 | J26: 77.49342366 | K26: 99.6177707
A27: PRESIDENCIA DE LA REPÚBLICA | B27: 3108.62582 | C27: 1982.621583 | D27: 157.4279737 | E27: 156.6210122 | F27: 1126.004237 | G27: 63.77807102 | H27: 5.064230398 | I27: 5.038271611 | J27: 7.940394429 | K27: 99.48740904
A28: TECNOLOGÍAS DE LA INFORMACIÓN Y LAS COMUNICACIONES | B28: 2741.750844 | C28: 1707.548941 | D28: 627.1398907 | E28: 472.7574106 | F28: 1034.201903 | G28: 62.27950817 | H28: 22.87370101 | I28: 17.24290198 | J28: 36.72749141 | K28: 75.38308719
A29: RELACIONES EXTERIORES | B29: 2095.33793 | C29: 827.5323233 | D29: 496.8321307 | E29: 492.7326118 | F29: 1267.805607 | G29: 39.49397906 | H29: 23.71131279 | I29: 23.51566326 | J29: 60.03779148 | K29: 99.17486839
A30: AMBIENTE Y DESARROLLO SOSTENIBLE | B30: 1781.308693 | C30: 835.8760666 | D30: 422.1888613 | E30: 421.6078464 | F30: 945.4326263 | G30: 46.92482948 | H30: 23.70104985 | I30: 23.66843254 | J30: 50.50854764 | K30: 99.86238032
A31: COMERCIO, INDUSTRIA Y TURISMO | B31: 1524.450332 | C31: 767.4847138 | D31: 229.2075873 | E31: 228.564948 | F31: 756.9656183 | G31: 50.34501273 | H31: 15.03542506 | I31: 14.99326959 | J31: 29.86477556 | K31: 99.71962566
A32: CONGRESO DE LA REPÚBLICA | B32: 1313.628 | C32: 417.9943085 | D32: 281.558724 | E32: 277.7563429 | F32: 895.6336915 | G32: 31.81983853 | H32: 21.43367255 | I32: 21.14421609 | J32: 67.35946359 | K32: 98.64952467
A33: PLANEACIÓN | B33: 1277.47619 | C33: 354.9824103 | D33: 106.7149914 | E33: 105.0578649 | F33: 922.4937797 | G33: 27.78779073 | H33: 8.353579679 | I33: 8.223860903 | J33: 30.06205049 | K33: 98.44714744
A34: INFORMACIÓN ESTADÍSTICA | B34: 1174.1439 | C34: 434.7901306 | D34: 130.2481943 | E34: 130.075668 | F34: 739.3537694 | G34: 37.03039556 | H34: 11.09303504 | I34: 11.07834125 | J34: 29.95656643 | K34: 99.86754034
A35: CULTURA | B35: 1090.762537 | C35: 485.2634284 | D35: 166.1456771 | E35: 165.3256356 | F35: 605.4991088 | G35: 44.48845756 | H35: 15.23206669 | I35: 15.15688612 | J35: 34.2382441 | K35: 99.50643224
A36: SISTEMA INTEGRAL DE VERDAD, JUSTICIA, REPARACIÓN Y NO REPETICIÓN | B36: 933.574301 | C36: 481.3295474 | D36: 230.7267203 | E36: 230.48723 | F36: 452.2447535 | G36: 51.55771179 | H36: 24.7143393 | I36: 24.68868624 | J36: 47.93529123 | K36: 99.89620172
A37: EMPLEO PÚBLICO | B37: 613.8294937 | C37: 344.0567063 | D37: 93.06015626 | E37: 91.33328625 | F37: 269.7727874 | G37: 56.05085937 | H37: 15.1605873 | I37: 14.87925999 | J37: 27.04791232 | K37: 98.14435084
A38: DEPORTE Y RECREACIÓN | B38: 464.3658176 | C38: 85.0012619 | D38: 21.95989753 | E38: 21.95989753 | F38: 379.3645557 | G38: 18.30480597 | H38: 4.729008186 | I38: 4.729008186 | J38: 25.83479002 | K38: 100
A39: CIENCIA, TECNOLOGÍA E INNOVACIÓN | B39: 299.8643731 | C39: 164.9262744 | D39: 50.1266474 | E39: 50.1266474 | F39: 134.9380987 | G39: 55.00028986 | H39: 16.7164398 | I39: 16.7164398 | J39: 30.39336672 | K39: 100
A40: INTELIGENCIA | B40: 193.82 | C40: 69.15963278 | D40: 37.63361656 | E40: 37.61286725 | F40: 124.6603672 | G40: 35.68240263 | H40: 19.416787 | I40: 19.40608154 | J40: 54.41558182 | K40: 99.94486496
A41: Fuente: Dirección General del Presupuesto Público Nacional- Subdirección de Análisis y Consolidación Presupuestal
B44: =+B8-'CUA1'!C27 -> 0 | C44: =+C8-'CUA1'!D27 -> 0 | D44: =+D8-'CUA1'!E27 -> 0 | E44: =+E8-'CUA1'!F27 -> 0 | F44: =+F8-'CUA1'!G27 -> 0

Sheet CUA5
A1: Cuadro No. 5
A2: Ejecución del presupuesto recursos Nación por sectores
A3: =+'CUA1'!A3:L3 -> Acumulada a Abril 2025
A4: Miles de millones de pesos
A5: Sector | B5: Apropiación Vigente | C5: Compromiso | D5: Obligación | E5: Pago | F5: Apropiación sin comprometer | G5: Porcentaje de ejecución
B6: Vigente | G6: Comp./Apro. | H6: Oblig./Apro. | I6: Pago/Apro. | J6: Oblig./Comp. | K6: Pago/Oblig.
B7: (1) | C7: (2) | D7: (3) | E7: (4) | F7: (5)=(1-2) | G7: (6)=(2/1) | H7: (7)=(3/1) | I7: (8)=(4/1) | J7: (9)=(3/2) | K7: (10)=(4/3)
A8: TOTAL RECURSOS NACIÓN | B8: 498479.5123 | C8: 165798.2056 | D8: 113428.4452 | E8: 107119.1557 | F8: 332681.3066 | G8: 33.26078636 | H8: 22.75488608 | I8: 21.48917921 | J8: 68.41355415 | K8: 94.43764793
A9: SERVICIO DE LA DEUDA PÚBLICA NACIONAL | B9: 109828.422 | C9: 26622.87235 | D9: 26358.9903 | E9: 21091.0739 | F9: 83205.54965 | G9: 24.24042144 | H9: 24.00015389 | I9: 19.20365741 | J9: 99.0088145 | K9: 80.01472615
A10: EDUCACIÓN | B10: 79436.80626 | C10: 40387.47222 | D10: 24596.12586 | E10: 23754.74787 | F10: 39049.33404 | G10: 50.84226585 | H10: 30.96313538 | I10: 29.90395636 | J10: 60.90038447 | K10: 96.57922557
A11: SALUD Y PROTECCIÓN SOCIAL | B11: 66283.58353 | C11: 22130.93401 | D11: 19422.9689 | E11: 19422.11175 | F11: 44152.64952 | G11: 33.3882582 | H11: 29.30283468 | I11: 29.30154152 | J11: 87.76389145 | K11: 99.99558691
A12: DEFENSA Y POLICÍA | B12: 57046.39943 | C12: 18370.44712 | D12: 14216.4612 | E12: 14158.54915 | F12: 38675.95231 | G12: 32.20264084 | H12: 24.92087378 | I12: 24.81935634 | J12: 77.38767111 | K12: 99.59264091
A13: TRABAJO | B13: 50334.01156 | C13: 10263.49969 | D13: 8878.317313 | E13: 8861.371372 | F13: 40070.51187 | G13: 20.39078423 | H13: 17.63880334 | I13: 17.60513636 | J13: 86.50380063 | K13: 99.80913116
A14: HACIENDA | B14: 35199.446 | C14: 6874.223932 | D14: 4217.5952 | E14: 4207.817797 | F14: 28325.22207 | G14: 19.52935262 | H14: 11.98199313 | I14: 11.95421597 | J14: 61.35376505 | K14: 99.76817586
A15: TRANSPORTE | B15: 12415.98193 | C15: 7939.571461 | D15: 1659.834249 | E15: 1629.8202 | F15: 4476.410468 | G15: 63.94638383 | H15: 13.36852984 | I15: 13.12679262 | J15: 20.9058418 | K15: 98.19174418
A16: RAMA JUDICIAL | B16: 10414.88358 | C16: 2771.461666 | D16: 2262.044685 | E16: 2248.085944 | F16: 7643.421912 | G16: 26.6105871 | H16: 21.71934682 | I16: 21.58531996 | J16: 81.6191944 | K16: 99.38291488
A17: INCLUSIÓN SOCIAL Y RECONCILIACIÓN | B17: 10279.98081 | C17: 2302.660458 | D17: 1572.173952 | E17: 1550.486792 | F17: 7977.320354 | G17: 22.3994626 | H17: 15.29354948 | I17: 15.08258449 | J17: 68.27641249 | K17: 98.62056225
A18: VIVIENDA, CIUDAD Y TERRITORIO | B18: 8741.398452 | C18: 4488.036893 | D18: 1631.277722 | E18: 1631.00747 | F18: 4253.361558 | G18: 51.34232146 | H18: 18.66151887 | I18: 18.65842724 | J18: 36.34724403 | K18: 99.98343309
A19: IGUALDAD Y EQUIDAD | B19: 7695.205123 | C19: 5849.425551 | D19: 1514.285051 | E19: 1513.279211 | F19: 1845.779572 | G19: 76.01390031 | H19: 19.67829351 | I19: 19.66522253 | J19: 25.88775663 | K19: 99.93357662
A20: MINAS Y ENERGÍA | B20: 7193.515649 | C20: 1983.36453 | D20: 134.2311486 | E20: 132.68901 | F20: 5210.151119 | G20: 27.57156065 | H20: 1.866002038 | I20: 1.844564138 | J20: 6.767850618 | K20: 98.85113205
A21: FISCALÍA | B21: 7095.704065 | C21: 2311.339664 | D21: 1774.441569 | E21: 1763.342421 | F21: 4784.364401 | G21: 32.57378891 | H21: 25.0072657 | I21: 24.85084504 | J21: 76.7711296 | K21: 99.37449913
A22: AGRICULTURA Y DESARROLLO RURAL | B22: 5120.467155 | C22: 1630.869059 | D22: 424.5343701 | E22: 411.3306145 | F22: 3489.598096 | G22: 31.85000527 | H22: 8.290930442 | I22: 8.033068117 | J22: 26.03117448 | K22: 96.88982646
A23: JUSTICIA Y DEL DERECHO | B23: 4424.374242 | C23: 1508.932053 | D23: 835.6960702 | E23: 834.1498274 | F23: 2915.442189 | G23: 34.10498232 | H23: 18.88845799 | I23: 18.85350971 | J23: 55.38328041 | K23: 99.81497547
A24: ORGANISMOS DE CONTROL | B24: 4396.345327 | C24: 1232.953454 | D24: 954.7355388 | E24: 951.0739929 | F24: 3163.391873 | G24: 28.04496377 | H24: 21.71657292 | I24: 21.63328679 | J24: 77.43484036 | K24: 99.61648585
A25: REGISTRADURÍA | B25: 4321.351017 | C25: 418.1484838 | D25: 235.2295742 | E25: 234.6769224 | F25: 3903.202533 | G25: 9.676336917 | H25: 5.443426681 | I25: 5.430637814 | J25: 56.2550346 | K25: 99.76505852
A26: INTERIOR | B26: 4299.914104 | C26: 2214.013783 | D26: 734.3892859 | E26: 730.2460278 | F26: 2085.900321 | G26: 51.48972118 | H26: 17.07916177 | I26: 16.98280501 | J26: 33.17004129 | K26: 99.43582264
A27: PRESIDENCIA DE LA REPÚBLICA | B27: 3023.528933 | C27: 1980.322023 | D27: 157.328242 | E27: 156.5354638 | F27: 1043.20691 | G27: 65.49704227 | H27: 5.203464081 | I27: 5.177243787 | J27: 7.944578717 | K27: 99.49609926
A28: AMBIENTE Y DESARROLLO SOSTENIBLE | B28: 1500.701187 | C28: 634.8805183 | D28: 305.2678221 | E28: 304.7968646 | F28: 865.820669 | G28: 42.30559179 | H28: 20.34167926 | I28: 20.31029676 | J28: 48.08272003 | K28: 99.84572316
A29: RELACIONES EXTERIORES | B29: 1490.253752 | C29: 558.982796 | D29: 360.3220884 | E29: 356.9651882 | F29: 931.2709563 | G29: 37.50923594 | H29: 24.1785728 | I29: 23.95331584 | J29: 64.46031808 | K29: 99.06836125
A30: CONGRESO DE LA REPÚBLICA | B30: 1313.628 | C30: 417.9943085 | D30: 281.558724 | E30: 277.7563429 | F30: 895.6336915 | G30: 31.81983853 | H30: 21.43367255 | I30: 21.14421609 | J30: 67.35946359 | K30: 98.64952467
A31: CULTURA | B31: 1068.4397 | C31: 478.7024889 | D31: 165.4040511 | E31: 164.5865285 | F31: 589.7372114 | G31: 44.80388447 | H31: 15.48089715 | I31: 15.40438159 | J31: 34.55257804 | K31: 99.5057421
A32: INFORMACIÓN ESTADÍSTICA | B32: 1051.190432 | C32: 419.9906485 | D32: 125.2779105 | E32: 125.10982 | F32: 631.1997836 | G32: 39.95381196 | H32: 11.91771792 | I32: 11.90172743 | J32: 29.82873808 | K32: 99.86582589
A33: PLANEACIÓN | B33: 1018.330446 | C33: 302.3713695 | D33: 67.52694809 | E33: 65.88311604 | F33: 715.9590766 | G33: 29.69285369 | H33: 6.631143 | I33: 6.469718773 | J33: 22.33245436 | K33: 97.56566511
A34: SISTEMA INTEGRAL DE VERDAD, JUSTICIA, REPARACIÓN Y NO REPETICIÓN | B34: 933.574301 | C34: 481.3295474 | D34: 230.7267203 | E34: 230.48723 | F34: 452.2447535 | G34: 51.55771179 | H34: 24.7143393 | I34: 24.68868624 | J34: 47.93529123 | K34: 99.89620172
A35: COMERCIO, INDUSTRIA Y TURISMO | B35: 896.5165075 | C35: 537.4124038 | D35: 132.8893386 | E35: 132.5553515 | F35: 359.1041038 | G35: 59.94450735 | H35: 14.82285462 | I35: 14.78560076 | J35: 24.72762773 | K35: 99.7486728
A36: TECNOLOGÍAS DE LA INFORMACIÓN Y LAS COMUNICACIONES | B36: 642.6714113 | C36: 349.499042 | D36: 54.35722091 | E36: 54.18614795 | F36: 293.1723693 | G36: 54.38222953 | H36: 8.45801135 | I36: 8.43139231 | J36: 15.55289554 | K36: 99.68528016
A37: DEPORTE Y RECREACIÓN | B37: 464.3658176 | C37: 85.0012619 | D37: 21.95989753 | E37: 21.95989753 | F37: 379.3645557 | G37: 18.30480597 | H37: 4.729008186 | I37: 4.729008186 | J37: 25.83479002 | K37: 100
A38: CIENCIA, TECNOLOGÍA E INNOVACIÓN | B38: 299.8643731 | C38: 164.9262744 | D38: 50.1266474 | E38: 50.1266474 | F38: 134.9380987 | G38: 55.00028986 | H38: 16.7164398 | I38: 16.7164398 | J38: 30.39336672 | K38: 100
A39: INTELIGENCIA | B39: 193.82 | C39: 69.15963278 | D39: 37.63361656 | E39: 37.61286725 | F39: 124.6603672 | G39: 35.68240263 | H39: 19.416787 | I39: 19.40608154 | J39: 54.41558182 | K39: 99.94486496
A40: EMPLEO PÚBLICO | B40: 54.83716489 | C40: 17.40691742 | D40: 14.73395228 | E40: 14.73395228 | F40: 37.43024747 | G40: 31.74292007 | H40: 26.86855221 | I40: 26.86855221 | J40: 84.64423612 | K40: 100
A41: Fuente: Dirección General del Presupuesto Público Nacional- Subdirección de Análisis y Consolidación Presupuestal
B44: =+B8-'CUA2'!C27 -> 0 | C44: =+C8-'CUA2'!D27 -> 0 | D44: =+D8-'CUA2'!E27 -> 0 | E44: =+E8-'CUA2'!F27 -> 0 | F44: =+F8-'CUA2'!G27 -> 0

Sheet CUA6
A1: Cuadro No. 6
A2: Ejecución del presupuesto recursos Propios por sectores
A3: =+'CUA1'!A3:L3 -> Acumulada a Abril 2025
A4: Miles de millones de pesos
A5: Sector | B5: Apropiación Vigente | C5: Compromiso | D5: Obligación | E5: Pago | F5: Apropiación sin comprometer | G5: Porcentaje de ejecución
B6: Vigente | G6: Comp./Apro. | H6: Oblig./Apro. | I6: Pago/Apro. | J6: Oblig./Comp. | K6: Pago/Oblig.
B7: (1) | C7: (2) | D7: (3) | E7: (4) | F7: (5)=(1-2) | G7: (6)=(2/1) | H7: (7)=(3/1) | I7: (8)=(4/1) | J7: (9)=(3/2) | K7: (10)=(4/3)
A8: TOTAL RECURSOS PROPIOS | B8: 27323.62019 | C8: 12404.45478 | D8: 6143.779068 | E8: 5848.924136 | F8: 14919.16541 | G8: 45.39828431 | H8: 22.48523082 | I8: 21.40610979 | J8: 49.52881185 | K8: 95.20075626
A9: TRANSPORTE | B9: 4970.812742 | C9: 2422.769608 | D9: 498.9170312 | E9: 446.1090576 | F9: 2548.043134 | G9: 48.73990902 | H9: 10.03693072 | I9: 8.974569769 | J9: 20.59283844 | K9: 89.41547988
A10: IGUALDAD Y EQUIDAD | B10: 4422.270459 | C10: 2432.131217 | D10: 961.5558262 | E10: 961.2691322 | F10: 1990.139242 | G10: 54.9973422 | H10: 21.74348754 | I10: 21.73700458 | J10: 39.53552421 | K10: 99.97018437
A11: MINAS Y ENERGÍA | B11: 4020.927669 | C11: 2347.814278 | D11: 2209.369016 | E11: 2204.327749 | F11: 1673.113391 | G11: 58.38986601 | H11: 54.94674857 | I11: 54.82137284 | J11: 94.10322772 | K11: 99.7718232
A12: TRABAJO | B12: 3070.410329 | C12: 635.6556533 | D12: 395.0149454 | E12: 393.2522772 | F12: 2434.754676 | G12: 20.70262881 | H12: 12.8652168 | I12: 12.80780857 | J12: 62.14291391 | K12: 99.55377177
A13: DEFENSA Y POLICÍA | B13: 2915.680235 | C13: 997.7155356 | D13: 571.3597616 | E13: 515.4542371 | F13: 1917.9647 | G13: 34.21896282 | H13: 19.59610504 | I13: 17.67869572 | J13: 57.26680013 | K13: 90.21535497
A14: TECNOLOGÍAS DE LA INFORMACIÓN Y LAS COMUNICACIONES | B14: 2099.079433 | C14: 1358.049899 | D14: 572.7826698 | E14: 418.5712627 | F14: 741.0295341 | G14: 64.6974039 | H14: 27.28732704 | I14: 19.9407062 | J14: 42.17685007 | K14: 73.0768029
A15: JUSTICIA Y DEL DERECHO | B15: 1100.490459 | C15: 333.4432434 | D15: 139.6931391 | E15: 128.8050545 | F15: 767.0472157 | G15: 30.29951243 | H15: 12.69371651 | I15: 11.70433178 | J15: 41.89412798 | K15: 92.20571267
A16: SALUD Y PROTECCIÓN SOCIAL | B16: 878.205546 | C16: 357.3957207 | D16: 156.4364673 | E16: 153.1430688 | F16: 520.8098253 | G16: 40.69613569 | H16: 17.8131951 | I16: 17.43818056 | J16: 43.77122004 | K16: 97.89473733
A17: COMERCIO, INDUSTRIA Y TURISMO | B17: 627.9338246 | C17: 230.07231 | D17: 96.31824868 | E17: 96.00959647 | F17: 397.8615146 | G17: 36.63957905 | H17: 15.33891708 | I17: 15.28976346 | J17: 41.86433764 | K17: 99.6795496
A18: RELACIONES EXTERIORES | B18: 605.084178 | C18: 268.5495273 | D18: 136.5100423 | E18: 135.7674236 | F18: 336.5346507 | G18: 44.38217641 | H18: 22.56050436 | I18: 22.43777454 | J18: 50.83235249 | K18: 99.455997
A19: EMPLEO PÚBLICO | B19: 558.9923289 | C19: 326.6497889 | D19: 78.32620398 | E19: 76.59933397 | F19: 232.34254 | G19: 58.43546898 | H19: 14.01203557 | I19: 13.70311005 | J19: 23.97864828 | K19: 97.79528443
A20: HACIENDA | B20: 525.8884612 | C20: 113.8221082 | D20: 88.10120074 | E20: 84.79695653 | F20: 412.0663529 | G20: 21.64377366 | H20: 16.75283016 | I20: 16.12451362 | J20: 77.40253813 | K20: 96.24949015
A21: AMBIENTE Y DESARROLLO SOSTENIBLE | B21: 280.6075056 | C21: 200.9955483 | D21: 116.9210392 | E21: 116.8109818 | F21: 79.61195728 | G21: 71.62871424 | H21: 41.66711042 | I21: 41.62788929 | J21: 58.1709596 | K21: 99.9058703
A22: REGISTRADURÍA | B22: 271.2497952 | C22: 143.9257381 | D22: 28.99108964 | E22: 28.99108964 | F22: 127.3240571 | G22: 53.06021999 | H22: 10.68796738 | I22: 10.68796738 | J22: 20.14308909 | K22: 100
A23: PLANEACIÓN | B23: 259.1457439 | C23: 52.61104079 | D23: 39.18804331 | E23: 39.1747489 | F23: 206.5347031 | G23: 20.30171902 | H23: 15.12200923 | I23: 15.11687914 | J23: 74.48634873 | K23: 99.96607532
A24: INTERIOR | B24: 175.999602 | C24: 56.50945359 | D24: 11.444138 | E24: 11.176725 | F24: 119.4901484 | G24: 32.10771669 | H24: 6.502365838 | I24: 6.35042629 | J24: 20.25172297 | K24: 97.66331899
A25: AGRICULTURA Y DESARROLLO RURAL | B25: 123.5732821 | C25: 49.09891644 | D25: 16.95875262 | E25: 13.10902811 | F25: 74.47436565 | G25: 39.7326312 | H25: 13.7236402 | I25: 10.60830293 | J25: 34.53997329 | K25: 77.29948304
A26: INFORMACIÓN ESTADÍSTICA | B26: 122.9534679 | C26: 14.79948209 | D26: 4.970283782 | E26: 4.965847979 | F26: 108.1539858 | G26: 12.03665284 | H26: 4.042410406 | I26: 4.038802697 | J26: 33.58417378 | K26: 99.91075353
A27: PRESIDENCIA DE LA REPÚBLICA | B27: 85.096887 | C27: 2.299559874 | D27: 0.099731741 | E27: 0.085548344 | F27: 82.79732713 | G27: 2.702284367 | H27: 0.1171978723 | I27: 0.1005305212 | J27: 4.336992575 | K27: 85.77845242
A28: INCLUSIÓN SOCIAL Y RECONCILIACIÓN | B28: 66.18747203 | C28: 0 | D28: 0 | E28: 0 | F28: 66.18747203 | G28: 0 | H28: 0 | I28: 0 | J28: 0 | K28: 0
A29: EDUCACIÓN | B29: 59.66940273 | C29: 17.92462296 | D29: 8.84447844 | E29: 8.652733341 | F29: 41.74477976 | G29: 30.03989004 | H29: 14.82246853 | I29: 14.50112276 | J29: 49.34261913 | K29: 97.83203611
A30: FISCALÍA | B30: 41.465715 | C30: 32.451282 | D30: 8.026027186 | E30: 7.903870939 | F30: 9.014432995 | G30: 78.26051475 | H30: 19.35581525 | I30: 19.06121947 | J30: 24.73254272 | K30: 98.47799859
A31: CULTURA | B31: 22.32283694 | C31: 6.560939497 | D31: 0.7416260687 | E31: 0.7391071647 | F31: 15.76189745 | G31: 29.39115451 | H31: 3.322275169 | I31: 3.310991191 | J31: 11.30365657 | K31: 99.6603539
A32: ORGANISMOS DE CONTROL | B32: 19.57281803 | C32: 3.209305611 | D32: 3.209305611 | E32: 3.209305611 | F32: 16.36351242 | G32: 16.3967478 | H32: 16.3967478 | I32: 16.3967478 | J32: 100 | K32: 100
A33: Fuente: Dirección General del Presupuesto Público Nacional- Subdirección de Análisis y Consolidación Presupuestal
B36: =+B8-'CUA3'!C25 -> 0 | C36: =+C8-'CUA3'!D25 -> 0 | D36: =+D8-'CUA3'!E25 -> 0 | E36: =+E8-'CUA3'!F25 -> 0 | F36: =+F8-'CUA3'!G25 -> 0

Sheet CUA7
A1: Cuadro No. 7
A2: Ejecución del Presupuesto General de la Nación detallado por sector, entidad y rubro presupuestal
A3: Acumulada a Abril 2025
A4: Cifras en Pesos
A5: Entidad/Detalle | B5: Apropiación Vigente | C5: Compromiso | D5: Obligación | E5: Pago | F5: Apropiación sin comprometer | G5: Porcentaje de Ejecución
G6: Comp/ Aprop | H6: Oblig/ Aprop | I6: Pago/ Aprop
A7: TOTAL | B7: 5.258031325e+14 | C7: 1.782026604e+14 | D7: 1.195722242e+14 | E7: 1.129680798e+14 | F7: =+B7-C7 -> 3.476004721e+14 | G7: =IFERROR(IF(C7>0,+C7/B7*100,0),0) -> 33.89151745 | H7: =IFERROR(IF(D7>0,+D7/B7*100,0),0) -> 22.74087331 | I7: =IFERROR(IF(E7>0,+E7/B7*100,0),0) -> 21.48486246
A8: TOTAL SIN DEUDA | B8: 413197946062670 | C8: 1.51131928e+14 | D8: 9.276537389e+13 | E8: 9.142914589e+13 | F8: =+B8-C8 -> 2.620660181e+14 | G8: =IFERROR(IF(C8>0,+C8/B8*100,0),0) -> 36.57615664 | H8: =IFERROR(IF(D8>0,+D8/B8*100,0),0) -> 22.45058931 | I8: 22.12720241
A9: AGRICULTURA Y DESARROLLO RURAL | B9: 5244040437000 | C9: 1.679967975e+12 | D9: 4.414931228e+11 | E9: 4.244396426e+11 | F9: =+B9-C9 -> 3.564072462e+12 | G9: =IFERROR(IF(C9>0,+C9/B9*100,0),0) -> 32.03575554 | H9: =IFERROR(IF(D9>0,+D9/B9*100,0),0) -> 8.418949626 | I9: 8.093752283
A10: 170101 Ministerio de Agricultura y Desarrollo Rural | B10: 1584725649864 | C10: 5.40370638e+11 | D10: 1.16259741e+11 | E10: 1.16259741e+11 | F10: =+B10-C10 -> 1.044355012e+12 | G10: =IFERROR(IF(C10>0,+C10/B10*100,0),0) -> 34.09868692 | H10: 7.336269277 | I10: 7.336269277
A11: Funcionamiento | B11: 477152969000 | C11: 2.610565168e+11 | D11: 9.454077921e+10 | E11: 9.454077921e+10 | F11: 2.160964522e+11 | G11: 54.71128417 | H11: 19.81351586 | I11: 19.81351586
A12: Gastos de Personal | B12: 36807073000 | C12: 8796843666 | D12: 8796843666 | E12: 8796843666 | F12: 28010229334 | G12: 23.8998729 | H12: 23.8998729 | I12: 23.8998729
A13: 01-01-01-- SALARIO | B13: 24121006000 | C13: 5858646054 | D13: 5858646054 | E13: 5858646054 | F13: 18262359946 | G13: 24.28856431 | H13: 24.28856431 | I13: 24.28856431
A14: 01-01-02-- CONTRIBUCIONES INHERENTES A LA NÓMINA | B14: 8786830000 | C14: 2281677772 | D14: 2281677772 | E14: 2281677772 | F14: 6505152228 | G14: 25.9670185 | H14: 25.9670185 | I14: 25.9670185
A15: 01-01-03-- REMUNERACIONES NO CONSTITUTIVAS DE FACTOR SALARIAL | B15: 3899237000 | C15: 656519840 | D15: 656519840 | E15: 656519840 | F15: 3242717160 | G15: 16.83713609 | H15: 16.83713609 | I15: 16.83713609
A16: Adquisición de Bienes y Servicios | B16: 15682000000 | C16: 9012599906 | D16: 2117862779 | E16: 2117862779 | F16: 6669400094 | G16: 57.47098524 | H16: 13.50505534 | I16: 13.50505534
A17: 02---- ADQUISICIÓN DE BIENES Y SERVICIOS | B17: 15682000000 | C17: 9012599906 | D17: 2117862779 | E17: 2117862779 | F17: 6669400094 | G17: 57.47098524 | H17: 13.50505534 | I17: 13.50505534
A18: Transferencias | B18: 413589896000 | C18: 2.365608911e+11 | D18: 7.693989067e+10 | E18: 7.693989067e+10 | F18: 1.770290049e+11 | G18: =IFERROR(IF(C18>0,+C18/B18*100,0),0) -> 57.19697058 | H18: 18.60294253 | I18: 18.60294253
A19: 03-03-01-020- FONDO DE FOMENTO AGROPECUARIO DECRETO LEY 1279 DE 1994 | B19: 428816000 | C19: 0 | D19: 0 | E19: 0 | F19: 428816000 | G19: 0 | H19: 0 | I19: 0
A20: 03-03-01-067- DESARROLLO DE FUNCIONES DE APOYO AL SECTOR AGROPECUARIO EN CIENCIA, TECNOLOGÍA E INNOVACIÓN A CARGO DE CORPOICA A NIVEL NACIONAL. LEY 1731 DE 2014 | B20: 226754750000 | C20: 216754750000 | D20: 72251584000 | E20: 72251584000 | F20: 10000000000 | G20: =IFERROR(IF(C20>0,+C20/B20*100,0),0) -> 95.58994905 | H20: 31.86331664 | I20: 31.86331664
A21: 03-03-01-999- OTRAS TRANSFERENCIAS - DISTRIBUCIÓN PREVIO CONCEPTO DGPPN | B21: 30000000000 | C21: 0 | D21: 0 | E21: 0 | F21: 30000000000 | G21: 0 | H21: 0 | I21: 0
A22: 03-03-04-050- TRANSFERENCIA A LA SOCIEDAD FIDUCIARIA DE DESARROLLO AGROPECUARIO S.A. FIDUAGRARIA - PATRIMONIO AUTÓNOMO DE REMANENTES - INCODER EN LIQUIDACIÓN | B22: 2430000000 | C22: 0 | D22: 0 | E22: 0 | F22: 2430000000 | G22: 0 | H22: 0 | I22: 0
A23: 03-04-02-004- BONOS PENSIONALES (DE PENSIONES) | B23: 1558477000 | C23: 0 | D23: 0 | E23: 0 | F23: 1558477000 | G23: 0 | H23: 0 | I23: 0
A24: 03-04-02-012- INCAPACIDADES Y LICENCIAS DE MATERNIDAD Y PATERNIDAD (NO DE PENSIONES) | B24: 186000000 | C24: 26295527 | D24: 26295527 | E24: 26295527 | F24: 159704473 | G24: 14.13738011 | H24: 14.13738011 | I24: 14.13738011
A25: 03-04-02-080- MESADAS PENSIONALES DEL IDEMA (DE PENSIONES) | B25: 3556452000 | C25: 715432248 | D25: 711385074 | E25: 711385074 | F25: 2841019752 | G25: 20.11646011 | H25: 20.00266204 | I25: 20.00266204
A26: 03-06-01-001- FORTALECIMIENTO DE LAS ASOCIACIONES Y LIGAS DE CONSUMIDORES (LEY 73 DE 1981 Y DECRETO 1320 DE 1982) | B26: 846284000 | C26: 0 | D26: 0 | E26: 0 | F26: 846284000 | G26: 0 | H26: 0 | I26: 0
A27: 03-11-02-001- TRANSFERENCIAS AL SECTOR AGRÍCOLA Y SECTOR INDUSTRIAL PARA APOYO A LA PRODUCCIÓN - ARTÍCULO 1 LEY 16 DE 1990 Y ARTÍCULO 1 LEY 101 DE 1993; LEY 795 DE 2003 | B27: 71826700000 | C27: 0 | D27: 0 | E27: 0 | F27: 71826700000 | G27: 0 | H27: 0 | I27: 0
A28: 03-11-06-004- APERTURA Y/U OPERACIÓN OFICINAS DE LA RED SOCIAL DEL BANCO AGRARIO A NIVEL NACIONAL. LEY 795 DE 2003 | B28: 2330000000 | C28: 0 | D28: 0 | E28: 0 | F28: 2330000000 | G28: 0 | H28: 0 | I28: 0
A29: 03-02-02-- A ORGANIZACIONES INTERNACIONALES | B29: 4103000000 | C29: 0 | D29: 0 | E29: 0 | F29: 4103000000 | G29: 0 | H29: 0 | I29: 0
A30: 03-10--- SENTENCIAS Y CONCILIACIONES | B30: 4500000000 | C30: 2064413370 | D30: 1950626067 | E30: 1950626067 | F30: 2435586630 | G30: 45.87585267 | H30: 43.34724594 | I30: 43.34724594
A31: 03-04-02-009- OBLIGACIONES CONVENCIONALES PENSIONADOS DEL IDEMA (OTRAS PRESTACIONES DE JUBILACIÓN) | B31: 121165000 | C31: 0 | D31: 0 | E31: 0 | F31: 121165000 | G31: 0 | H31: 0 | I31: 0
A32: 03-03-04-071- FONDO PARA EL ACCESO A LOS INSUMOS AGROPECUARIOS -FAIA, LEY 2183 DE 2022 | B32: 46000000000 | C32: 15000000000 | D32: 0 | E32: 0 | F32: 31000000000 | G32: 32.60869565 | H32: 0 | I32: 0
A33: 03-03-04-070- FONDO DE FOMENTO PARA LAS MUJERES RURALES -FOMMUR, LEY 731 DE 2002 | B33: 16948252000 | C33: 0 | D33: 0 | E33: 0 | F33: 16948252000 | G33: 0 | H33: 0 | I33: 0
A34: 03-03-01-080- TRANSFERENCIA PARA ENTIDADES EN PROCESO DE LIQUIDACIÓN | B34: 2000000000 | C34: 2000000000 | D34: 2000000000 | E34: 2000000000 | F34: 0 | G34: 100 | H34: 100 | I34: 100
A35: Gastos por Tributos, Multas, Sanciones e Intereses de Mora | B35: 11074000000 | C35: 6686182098 | D35: 6686182098 | E35: 6686182098 | F35: 4387817902 | G35: 60.37729906 | H35: 60.37729906 | I35: 60.37729906
A36: 08-01--- IMPUESTOS | B36: 7737000000 | C36: 6686182098 | D36: 6686182098 | E36: 6686182098 | F36: 1050817902 | G36: 86.41827708 | H36: 86.41827708 | I36: 86.41827708
A37: 08-03--- TASAS Y DERECHOS ADMINISTRATIVOS | B37: 34000000 | C37: 0 | D37: 0 | E37: 0 | F37: 34000000 | G37: 0 | H37: 0 | I37: 0
A38: 08-04-01-- CUOTA DE FISCALIZACIÓN Y AUDITAJE | B38: 3303000000 | C38: 0 | D38: 0 | E38: 0 | F38: 3303000000 | G38: 0 | H38: 0 | I38: 0
A39: Inversión | B39: 1107572680864 | C39: 279314121149 | D39: 21718961770 | E39: 21718961770 | F39: 828258559715 | G39: 25.21858168 | H39: 1.96095138 | I39: 1.96095138
A40: A-Inversión | B40: 1107572680864 | C40: 279314121149 | D40: 21718961770 | E40: 21718961770 | F40: 828258559715 | G40: 25.21858168 | H40: 1.96095138 | I40: 1.96095138
A41: 1702-1100-19-30101B- 3. DERECHO HUMANO A LA ALIMENTACIÓN / B. PROVEER ACCESO A FACTORES PRODUCTIVOS EN FORMA OPORTUNA Y SIMULTÁNEA | B41: 63102000000 | C41: 2591104213 | D41: 18000000 | E41: 18000000 | F41: 60510895787 | G41: 4.106215671 | H41: 0.02852524484 | I41: 0.02852524484
A42: 1702-1100-20-30101B- 3. DERECHO HUMANO A LA ALIMENTACIÓN / B. PROVEER ACCESO A FACTORES PRODUCTIVOS EN FORMA OPORTUNA Y SIMULTÁNEA | B42: 60000000000 | C42: 2829622903 | D42: 1094876441 | E42: 1094876441 | F42: 57170377097 | G42: 4.716038172 | H42: 1.824794068 | I42: 1.824794068
A43: 1702-1100-21-30101B- 3. DERECHO HUMANO A LA ALIMENTACIÓN / B. PROVEER ACCESO A FACTORES PRODUCTIVOS EN FORMA OPORTUNA Y SIMULTÁNEA | B43: 100000000000 | C43: 1519929529 | D43: 187335330 | E43: 187335330 | F43: 98480070471 | G43: 1.519929529 | H43: 0.18733533 | I43: 0.18733533
A44: 1703-1100-8-30101B- 3. DERECHO HUMANO A LA ALIMENTACIÓN / B. PROVEER ACCESO A FACTORES PRODUCTIVOS EN FORMA OPORTUNA Y SIMULTÁNEA | B44: 480000000000 | C44: 183256978497 | D44: 9634946986 | E44: 9634946986 | F44: 296743021503 | G44: 38.17853719 | H44: 2.007280622 | I44: 2.007280622
A45: 1708-1100-3-40403A- 4. TRANSFORMACIÓN PRODUCTIVA, INTERNACIONALIZACIÓN Y ACCIÓN CLÍMATICA / A. MODELOS DE PRODUCCIÓN SOSTENIBLE Y REGENERATIVOS EN AGRICULTURA Y GANADERÍA | B45: 56898000000 | C45: 1189098225 | D45: 147085743 | E45: 147085743 | F45: 55708901775 | G45: 2.089877017 | H45: 0.258507756 | I45: 0.258507756
A46: 1709-1100-6-30101B- 3. DERECHO HUMANO A LA ALIMENTACIÓN / B. PROVEER ACCESO A FACTORES PRODUCTIVOS EN FORMA OPORTUNA Y SIMULTÁNEA | B46: 130000000000 | C46: 26050154585 | D46: 1432714371 | E46: 1432714371 | F46: 103949845415 | G46: 20.03858045 | H46: 1.102087977 | I46: 1.102087977
A47: 1799-1100-9-53105B- 5. CONVERGENCIA REGIONAL / B. ENTIDADES PÚBLICAS TERRITORIALES Y NACIONALES FORTALECIDAS | B47: 33157874072 | C47: 29499114200 | D47: 4215809953 | E47: 4215809953 | F47: 3658759872 | G47: 88.96563795 | H47: 12.7143554 | I47: 12.7143554
A48: 1799-1100-16-30206D- 3. DERECHO HUMANO A LA ALIMENTACIÓN / D. MINISTERIO DE AGRICULTURA Y DESARROLLO RURAL COMO RECTOR DEL DISEÑO DE POLÍTICA | B48: 12000000000 | C48: 3601128203 | D48: 653559471.5 | E48: 653559471.5 | F48: 8398871797 | G48: 30.00940169 | H48: 5.446328929 | I48: 5.446328929
A49: 1799-1100-17-30206D- 3. DERECHO HUMANO A LA ALIMENTACIÓN / D. MINISTERIO DE AGRICULTURA Y DESARROLLO RURAL COMO RECTOR DEL DISEÑO DE POLÍTICA | B49: 41714806792 | C49: 14694036535 | D49: 2153551970 | E49: 2153551970 | F49: 27020770257 | G49: 35.22499003 | H49: 5.162560097 | I49: 5.162560097
A50: 1701-1100-4-51103F- 5. CONVERGENCIA REGIONAL / F. PROVISIÓN Y MEJORAMIENTO DE VIVIENDA RURAL | B50: 40000000000 | C50: 1716523544 | D50: 148889877 | E50: 148889877 | F50: 38283476456 | G50: 4.29130886 | H50: 0.3722246925 | I50: 0.3722246925
A51: 1708-1100-5-40403A- 4. TRANSFORMACIÓN PRODUCTIVA, INTERNACIONALIZACIÓN Y ACCIÓN CLÍMATICA / A. MODELOS DE PRODUCCIÓN SOSTENIBLE Y REGENERATIVOS EN AGRICULTURA Y GANADERÍA | B51: 15000000000 | C51: 1223483487 | D51: 276367649.6 | E51: 276367649.6 | F51: 13776516513 | G51: 8.15655658 | H51: 1.842450998 | I51: 1.842450998
A52: 1799-1100-19-30206D- 3. DERECHO HUMANO A LA ALIMENTACIÓN / D. MINISTERIO DE AGRICULTURA Y DESARROLLO RURAL COMO RECTOR DEL DISEÑO DE POLÍTICA | B52: 14000000000 | C52: 7416463894 | D52: 1270943977 | E52: 1270943977 | F52: 6583536106 | G52: 52.9747421 | H52: 9.078171266 | I52: 9.078171266
A53: 1799-1100-20-30206D- 3. DERECHO HUMANO A LA ALIMENTACIÓN / D. MINISTERIO DE AGRICULTURA Y DESARROLLO RURAL COMO RECTOR DEL DISEÑO DE POLÍTICA | B53: 10000000000 | C53: 3726483334 | D53: 484880001 | E53: 484880001 | F53: 6273516666 | G53: 37.26483334 | H53: 4.84880001 | I53: 4.84880001
A54: 1703-1100-8-30101BZ- 3. DERECHO HUMANO A LA ALIMENTACIÓN / B. PROVEER ACCESO A FACTORES PRODUCTIVOS EN FORMA OPORTUNA Y SIMULTÁNEA / Z. ECI CATATUMBO | B54: 51700000000 | C54: 0 | D54: 0 | E54: 0 | F54: 51700000000 | G54: 0 | H54: 0 | I54: 0
A55: 170106 Unidad de Planificación de Tierras Rurales, Adecuación de Tierras y Usos Agropecuarios-UPRA | B55: 55200868224 | C55: 4.270843987e+10 | D55: 1.247005842e+10 | E55: 1.246137913e+10 | F55: 1.249242835e+10 | G55: 77.36914518 | H55: 22.59033022 | I55: 22.57460713
A56: Funcionamiento | B56: 14000585000 | C56: 5299353333 | D56: 3707102376 | E56: 3698423090 | F56: 8701231667 | G56: 37.85094218 | H56: 26.47819627 | I56: 26.41620396
A57: Gastos de Personal | B57: 10927436000 | C57: 2971984073 | D57: 2971984073 | E57: 2971984073 | F57: 7955451927 | G57: 27.1974512 | H57: 27.1974512 | I57: 27.1974512
A58: 01-01-01-- SALARIO | B58: 7170502000 | C58: 1995186531 | D58: 1995186531 | E58: 1995186531 | F58: 5175315469 | G58: 27.8249212 | H58: 27.8249212 | I58: 27.8249212
A59: 01-01-02-- CONTRIBUCIONES INHERENTES A LA NÓMINA | B59: 2622333000 | C59: 773293708 | D59: 773293708 | E59: 773293708 | F59: 1849039292 | G59: 29.48876851 | H59: 29.48876851 | I59: 29.48876851
A60: 01-01-03-- REMUNERACIONES NO CONSTITUTIVAS DE FACTOR SALARIAL | B60: 1134601000 | C60: 203503834 | D60: 203503834 | E60: 203503834 | F60: 931097166 | G60: 17.93615853 | H60: 17.93615853 | I60: 17.93615853
A61: Adquisición de Bienes y Servicios | B61: 2919381000 | C61: 2325053212 | D61: 732802254.5 | E61: 724122968.5 | F61: 594327788.1 | G61: 79.64199301 | H61: 25.10128875 | I61: 24.80398991
A62: 02---- ADQUISICIÓN DE BIENES Y SERVICIOS | B62: 2919381000 | C62: 2325053212 | D62: 732802254.5 | E62: 724122968.5 | F62: 594327788.1 | G62: 79.64199301 | H62: 25.10128875 | I62: 24.80398991
A63: Transferencias | B63: 36755000 | C63: 2126048 | D63: 2126048 | E63: 2126048 | F63: 34628952 | G63: 5.784377636 | H63: 5.784377636 | I63: 5.784377636
A64: 03-04-02-012- INCAPACIDADES Y LICENCIAS DE MATERNIDAD Y PATERNIDAD (NO DE PENSIONES) | B64: 36755000 | C64: 2126048 | D64: 2126048 | E64: 2126048 | F64: 34628952 | G64: 5.784377636 | H64: 5.784377636 | I64: 5.784377636
A65: Gastos por Tributos, Multas, Sanciones e Intereses de Mora | B65: 117013000 | C65: 190000 | D65: 190000 | E65: 190000 | F65: 116823000 | G65: 0.1623751207 | H65: 0.1623751207 | I65: 0.1623751207
A66: 08-03--- TASAS Y DERECHOS ADMINISTRATIVOS | B66: 413000 | C66: 190000 | D66: 190000 | E66: 190000 | F66: 223000 | G66: 46.00484262 | H66: 46.00484262 | I66: 46.00484262
A67: 08-04-01-- CUOTA DE FISCALIZACIÓN Y AUDITAJE | B67: 116600000 | C67: 0 | D67: 0 | E67: 0 | F67: 116600000 | G67: 0 | H67: 0 | I67: 0
A68: Inversión | B68: 41200283224 | C68: 3.740908654e+10 | D68: 8762956043 | E68: 8762956043 | F68: 3791196683 | G68: 90.79812956 | H68: 21.26916457 | I68: 21.26916457
A69: A-Inversión | B69: 41200283224 | C69: 3.740908654e+10 | D69: 8762956043 | E69: 8762956043 | F69: 3791196683 | G69: 90.79812956 | H69: 21.26916457 | I69: 21.26916457
A70: 1704-1100-9-30101A- 3. DERECHO HUMANO A LA ALIMENTACIÓN / A. ORDENAR LA PRODUCCIÓN AGROPECUARIA | B70: 15000000000 | C70: 14506969410 | D70: 2484431411 | E70: 2484431411 | F70: 493030590 | G70: 96.7131294 | H70: 16.56287607 | I70: 16.56287607
A71: 1704-1100-10-30206C- 3. DERECHO HUMANO A LA ALIMENTACIÓN / C. PRODUCCIÓN DE INFORMACIÓN PARA MEJORAR LA TOMA DE DECISIONES | B71: 8000000000 | C71: 7559119899 | D71: 2060822591 | E71: 2060822591 | F71: 440880100.7 | G71: 94.48899874 | H71: 25.76028239 | I71: =IFERROR(IF(E71>0,+E71/B71*100,0),0) -> 25.76028239
A72: 1704-1100-11-30206C- 3. DERECHO HUMANO A LA ALIMENTACIÓN / C. PRODUCCIÓN DE INFORMACIÓN PARA MEJORAR LA TOMA DE DECISIONES | B72: 3000000000 | C72: 2988140000 | D72: 707354963 | E72: 707354963 | F72: 11860000 | G72: 99.60466667 | H72: 23.57849877 | I72: 23.57849877
A73: 1799-1100-3-53105B- 5. CONVERGENCIA REGIONAL / B. ENTIDADES PÚBLICAS TERRITORIALES Y NACIONALES FORTALECIDAS | B73: 12200283224 | C73: 9414198681 | D73: 2981729927 | E73: 2981729927 | F73: 2786084543 | G73: 77.1637716 | H73: =IFERROR(IF(D73>0,+D73/B73*100,0),0) -> 24.43984186 | I73: 24.43984186
A74: 1704-1100-11-10303A- 1. ORDENAMIENTO DEL TERRITORIO ALREDEDOR DEL AGUA YJUSTICIA AMBIENTAL / A. ARMONIZACIÓN Y RACIONALIZACIÓN DE LOS INSTRUMENTOS DE ORDENAMIENTO Y PLANIFICACIÓN TERRITORIAL | B74: 3000000000 | C74: 2940658551 | D74: 528617151 | E74: 528617151 | F74: =+B74-C74 -> 59341449 | G74: =IFERROR(IF(C74>0,+C74/B74*100,0),0) -> 98.0219517 | H74: 17.6205717 | I74: 17.6205717
A75: 170200 Instituto Colombiano Agropecuario (ICA) | B75: 490263615733 | C75: 2.346066737e+11 | D75: 1.013068708e+11 | E75: 8.655371888e+10 | F75: 2.55656942e+11 | G75: 47.85316842 | H75: 20.66375467 | I75: 17.65452628
A76: Funcionamiento | B76: 219595508000 | C76: 8.957892477e+10 | D76: 6.080065958e+10 | E76: 5.886914547e+10 | F76: 1.300165832e+11 | G76: 40.79269453 | H76: 27.68756981 | I76: 26.80799166
A77: Gastos de Personal | B77: 141147808000 | C77: 39677487407 | D77: 39666412560 | E77: 39628924548 | F77: 101470320593 | G77: 28.11059411 | H77: 28.10274784 | I77: 28.07618844
A78: 01-01-01-- SALARIO | B78: 91070877000 | C78: 26574213763 | D78: 26574213763 | E78: 26556594988 | F78: 64496663237 | G78: 29.17970556 | H78: 29.17970556 | I78: 29.16035934
A79: 01-01-02-- CONTRIBUCIONES INHERENTES A LA NÓMINA | B79: 34518351000 | C79: 10466405889 | D79: 10466405889 | E79: 10463620445 | F79: 24051945111 | G79: 30.32128009 | H79: 30.32128009 | I79: 30.31321063
A80: 01-01-03-- REMUNERACIONES NO CONSTITUTIVAS DE FACTOR SALARIAL | B80: 13570391000 | C80: 2435354907 | D80: 2435354907 | E80: 2418271114 | F80: 11135036093 | G80: 17.94609239 | H80: 17.94609239 | I80: 17.82020219
A81: 01-02-01-- SALARIO | B81: 1337223000 | C81: 160112411 | D81: 149037564 | E81: 149037564 | F81: 1177110589 | G81: 11.97350113 | H81: 11.14530366 | I81: 11.14530366
A82: 01-02-03-- REMUNERACIONES NO CONSTITUTIVAS DE FACTOR SALARIAL | B82: 19976000 | C82: 847964 | D82: 847964 | E82: 847964 | F82: 19128036 | G82: 4.244913897 | H82: 4.244913897 | I82: 4.244913897
A83: 01-02-02-- CONTRIBUCIONES INHERENTES A LA NÓMINA | B83: 630990000 | C83: 40552473 | D83: 40552473 | E83: 40552473 | F83: 590437527 | G83: 6.426801217 | H83: 6.426801217 | I83: 6.426801217
A84: Adquisición de Bienes y Servicios | B84: 58402409000 | C84: 4.457964405e+10 | D84: 1.755463563e+10 | E84: 1.578281401e+10 | F84: 1.382276495e+10 | G84: 76.33185824 | H84: 30.05806768 | I84: 27.0242517
A85: 02---- ADQUISICIÓN DE BIENES Y SERVICIOS | B85: 58402409000 | C85: 4.457964405e+10 | D85: 1.755463563e+10 | E85: 1.578281401e+10 | F85: 1.382276495e+10 | G85: 76.33185824 | H85: 30.05806768 | I85: 27.0242517
A86: Transferencias | B86: 14672463000 | C86: 3159198283 | D86: 1417016360 | E86: 1294811875 | F86: 1.151326472e+10 | G86: 21.53147895 | H86: 9.657658431 | I86: 8.824775193
A87: 03-04-02-001- MESADAS PENSIONALES (DE PENSIONES) | B87: 140372000 | C87: 34401032 | D87: 34401032 | E87: 34401032 | F87: 105970968 | G87: 24.50704699 | H87: 24.50704699 | I87: 24.50704699
A88: 03-04-02-002- CUOTAS PARTES PENSIONALES (DE PENSIONES) | B88: 36670000 | C88: 6403046.9 | D88: 0 | E88: 0 | F88: 30266953.1 | G88: 17.46126779 | H88: 0 | I88: 0
A89: 03-04-02-022- PROGRAMAS DE VIVIENDA Y OTROS (NO DE PENSIONES) | B89: 2441421000 | C89: 1028439533 | D89: 1028439533 | E89: 1028439533 | F89: 1412981467 | G89: 42.12462877 | H89: 42.12462877 | I89: 42.12462877
A90: 03-02-02-- A ORGANIZACIONES INTERNACIONALES | B90: 1000000000 | C90: 643172524 | D90: 0 | E90: 0 | F90: 356827476 | G90: 64.3172524 | H90: 0 | I90: 0
A91: 03-10--- SENTENCIAS Y CONCILIACIONES | B91: 9054000000 | C91: 0 | D91: 0 | E91: 0 | F91: 9054000000 | G91: 0 | H91: 0 | I91: 0
A92: 03-03-01-085- FONDO NACIONAL DE EMERGENCIAS SANITARIAS Y FITOSANITARIAS DEL INSTITUTO COLOMBIANO AGROPECUARIO - ICA | B92: 2000000000 | C92: 1446782147 | D92: 354175795 | E92: 231971310 | F92: 553217853 | G92: 72.33910735 | H92: 17.70878975 | I92: 11.5985655
A93: Adquisición de Activos Financieros | B93: 700000000 | C93: 0 | D93: 0 | E93: 0 | F93: 700000000 | G93: 0 | H93: 0 | I93: 0
A94: 06-01-04-011- PRÉSTAMOS DE CONSUMO | B94: 700000000 | C94: 0 | D94: 0 | E94: 0 | F94: 700000000 | G94: 0 | H94: 0 | I94: 0
A95: Gastos por Tributos, Multas, Sanciones e Intereses de Mora | B95: 4672828000 | C95: 2162595036 | D95: 2162595036 | E95: 2162595036 | F95: 2510232964 | G95: 46.28021909 | H95: 46.28021909 | I95: 46.28021909
A96: 08-01--- IMPUESTOS | B96: 3572828000 | C96: 2162595036 | D96: 2162595036 | E96: 2162595036 | F96: 1410232964 | G96: 60.52894335 | H96: 60.52894335 | I96: 60.52894335
A97: 08-04-01-- CUOTA DE FISCALIZACIÓN Y AUDITAJE | B97: 1100000000 | C97: 0 | D97: 0 | E97: 0 | F97: 1100000000 | G97: 0 | H97: 0 | I97: 0
A98: Inversión | B98: 270668107733 | C98: 1.45027749e+11 | D98: 4.05062112e+10 | E98: 2.768457341e+10 | F98: 1.256403588e+11 | G98: 53.58139538 | H98: 14.96526929 | I98: 10.22823621
A99: A-Inversión | B99: 270668107733 | C99: 1.45027749e+11 | D99: 4.05062112e+10 | E99: 2.768457341e+10 | F99: 1.256403588e+11 | G99: 53.58139538 | H99: 14.96526929 | I99: 10.22823621
A100: 1799-1100-3-53105B- 5. CONVERGENCIA REGIONAL / B. ENTIDADES PÚBLICAS TERRITORIALES Y NACIONALES FORTALECIDAS | B100: 68133621547 | C100: 29121807288 | D100: 6915023183 | E100: 5189347667 | F100: 39011814259 | G100: 42.7421978 | H100: 10.14920831 | I100: 7.616427175
A101: 1707-1100-6-30204A- 3. DERECHO HUMANO A LA ALIMENTACIÓN / A. POLÍTICA DE INOCUIDAD DE LOS ALIMENTOS PARA EL PAÍS | B101: 101267243093 | C101: 5.593979829e+10 | D101: 1.651796233e+10 | E101: 1.094641949e+10 | F101: 4.53274448e+10 | G101: 55.23977604 | H101: 16.31125902 | I101: 10.80943763
A102: 1707-1100-7-30204A- 3. DERECHO HUMANO A LA ALIMENTACIÓN / A. POLÍTICA DE INOCUIDAD DE LOS ALIMENTOS PARA EL PAÍS | B102: 101267243093 | C102: 5.996614339e+10 | D102: 1.70732257e+10 | E102: 1.154880626e+10 | F102: 4.13010997e+10 | G102: 59.21573607 | H102: 16.85957391 | I102: 11.40428623
A103: 171500 Autoridad Nacional de Acuicultura y Pesca - AUNAP | B103: 97937013996 | C103: 2.757289087e+10 | D103: 8583429939 | E103: 8583429939 | F103: 7.036412312e+10 | G103: 28.15369772 | H103: 8.764234877 | I103: 8.764234877
A104: Funcionamiento | B104: 24417000000 | C104: 8961210196 | D104: 5558628911 | E104: 5558628911 | F104: 1.54557898e+10 | G104: 36.70070113 | H104: 22.76540488 | I104: 22.76540488
A105: Gastos de Personal | B105: 15487800000 | C105: 4071848712 | D105: 4071848712 | E105: 4071848712 | F105: 11415951288 | G105: 26.290685 | H105: 26.290685 | I105: 26.290685
A106: 01-01-01-- SALARIO | B106: 10359806000 | C106: 2701497513 | D106: 2701497513 | E106: 2701497513 | F106: 7658308487 | G106: 26.07671913 | H106: 26.07671913 | I106: 26.07671913
A107: 01-01-02-- CONTRIBUCIONES INHERENTES A LA NÓMINA | B107: 3785163000 | C107: 1006335488 | D107: 1006335488 | E107: 1006335488 | F107: 2778827512 | G107: 26.58631842 | H107: 26.58631842 | I107: 26.58631842
A108: 01-01-03-- REMUNERACIONES NO CONSTITUTIVAS DE FACTOR SALARIAL | B108: 1342831000 | C108: 364015711 | D108: 364015711 | E108: 364015711 | F108: 978815289 | G108: 27.10808069 | H108: 27.10808069 | I108: 27.10808069
A109: Adquisición de Bienes y Servicios | B109: 8416484000 | C109: 4862909360 | D109: 1461217147 | E109: 1461217147 | F109: 3553574640 | G109: 57.77839487 | H109: 17.36137259 | I109: 17.36137259
A110: 02---- ADQUISICIÓN DE BIENES Y SERVICIOS | B110: 8416484000 | C110: 4862909360 | D110: 1461217147 | E110: 1461217147 | F110: 3553574640 | G110: 57.77839487 | H110: 17.36137259 | I110: 17.36137259
A111: Transferencias | B111: 214198000 | C111: 13024294 | D111: 13024294 | E111: 13024294 | F111: 201173706 | G111: 6.080492815 | H111: 6.080492815 | I111: 6.080492815
A112: 03-04-02-012- INCAPACIDADES Y LICENCIAS DE MATERNIDAD Y PATERNIDAD (NO DE PENSIONES) | B112: 64198000 | C112: 13024294 | D112: 13024294 | E112: 13024294 | F112: 51173706 | G112: 20.28769432 | H112: 20.28769432 | I112: 20.28769432
A113: 03-10--- SENTENCIAS Y CONCILIACIONES | B113: 150000000 | C113: 0 | D113: 0 | E113: 0 | F113: 150000000 | G113: 0 | H113: 0 | I113: 0
A114: Gastos por Tributos, Multas, Sanciones e Intereses de Mora | B114: 298518000 | C114: 13427830 | D114: 12538758 | E114: 12538758 | F114: 285090170 | G114: 4.498164265 | H114: 4.200335658 | I114: 4.200335658
A115: 08-01--- IMPUESTOS | B115: 61000000 | C115: 10547112 | D115: 10547112 | E115: 10547112 | F115: 50452888 | G115: 17.29034754 | H115: 17.29034754 | I115: 17.29034754
A116: 08-03--- TASAS Y DERECHOS ADMINISTRATIVOS | B116: 4518000 | C116: 2880718 | D116: 1991646 | E116: 1991646 | F116: 1637282 | G116: 63.76091191 | H116: 44.08247012 | I116: 44.08247012
A117: 08-04-01-- CUOTA DE FISCALIZACIÓN Y AUDITAJE | B117: 233000000 | C117: 0 | D117: 0 | E117: 0 | F117: 233000000 | G117: 0 | H117: 0 | I117: 0
A118: Inversión | B118: 73520013996 | C118: 18611680679 | D118: 3024801028 | E118: 3024801028 | F118: 54908333317 | G118: 25.31512124 | H118: 4.11425524 | I118: 4.11425524
A119: A-Inversión | B119: 73520013996 | C119: 18611680679 | D119: 3024801028 | E119: 3024801028 | F119: 54908333317 | G119: 25.31512124 | H119: 4.11425524 | I119: 4.11425524
A120: 1799-1100-3-53105B- 5. CONVERGENCIA REGIONAL / B. ENTIDADES PÚBLICAS TERRITORIALES Y NACIONALES FORTALECIDAS | B120: 4483717900 | C120: 1888346371 | D120: 648184702 | E120: 648184702 | F120: 2595371529 | G120: 42.11563736 | H120: 14.45641132 | I120: 14.45641132
A121: 1707-1100-6-30101B- 3. DERECHO HUMANO A LA ALIMENTACIÓN / B. PROVEER ACCESO A FACTORES PRODUCTIVOS EN FORMA OPORTUNA Y SIMULTÁNEA | B121: 3466308700 | C121: 1242663534 | D121: 123018227 | E121: 123018227 | F121: 2223645166 | G121: 35.84976531 | H121: 3.548969167 | I121: 3.548969167
A122: 1707-1100-7-30101B- 3. DERECHO HUMANO A LA ALIMENTACIÓN / B. PROVEER ACCESO A FACTORES PRODUCTIVOS EN FORMA OPORTUNA Y SIMULTÁNEA | B122: 54383838596 | C122: 9533909835 | D122: 2096260494 | E122: 2096260494 | F122: 44849928761 | G122: 17.53077767 | H122: 3.854565158 | I122: 3.854565158
A123: 1708-1100-7-30101B- 3. DERECHO HUMANO A LA ALIMENTACIÓN / B. PROVEER ACCESO A FACTORES PRODUCTIVOS EN FORMA OPORTUNA Y SIMULTÁNEA | B123: 4266341700 | C123: 0 | D123: 0 | E123: 0 | F123: 4266341700 | G123: 0 | H123: 0 | I123: 0
A124: 1708-1100-6-30206C- 3. DERECHO HUMANO A LA ALIMENTACIÓN / C. PRODUCCIÓN DE INFORMACIÓN PARA MEJORAR LA TOMA DE DECISIONES - [PREVIO CONCEPTO DNP] | B124: 6919807100 | C124: 5946760939 | D124: 157337605 | E124: 157337605 | F124: 973046161 | G124: 85.93824731 | H124: 2.273728194 | I124: 2.273728194
A125: 171600 UAE Gestión de Restitución de Tierras Despojadas | B125: 536029566664 | C125: 2.651289264e+11 | D125: 8.831286833e+10 | E125: 87906179401 | F125: 2.709006402e+11 | G125: 49.46162356 | H125: 16.47537259 | I125: 16.39950198
A126: Funcionamiento | B126: 80608731000 | C126: 2.98339246e+10 | D126: 2.015578678e+10 | E126: 19749097850 | F126: 5.07748064e+10 | G126: 37.0107856 | H126: 25.00447101 | I126: 24.49994883
A127: Gastos de Personal | B127: 57297360000 | C127: 16170201921 | D127: 16163462898 | E127: 16000283038 | F127: 41127158079 | G127: 28.22154794 | H127: 28.20978645 | I127: 27.92499172
A128: 01-01-01-- SALARIO | B128: 38347846000 | C128: 10643779574 | D128: 10637733396 | E128: 10637733396 | F128: 27704066426 | G128: 27.75587337 | H128: 27.7401067 | I128: 27.7401067
A129: 01-01-02-- CONTRIBUCIONES INHERENTES A LA NÓMINA | B129: 13860077000 | C129: 4811728345 | D129: 4811728345 | E129: 4648548485 | F129: 9048348655 | G129: 34.71646186 | H129: 34.71646186 | I129: 33.53912453
A130: 01-01-03-- REMUNERACIONES NO CONSTITUTIVAS DE FACTOR SALARIAL | B130: 5089437000 | C130: 714694002 | D130: 714001157 | E130: 714001157 | F130: 4374742998 | G130: 14.04269278 | H130: 14.02907939 | I130: 14.02907939
A131: Adquisición de Bienes y Servicios | B131: 21891696000 | C131: 1.356172998e+10 | D131: 3890331178 | E131: 3646822112 | F131: 8329966016 | G131: 61.94919747 | H131: 17.77080761 | I131: 16.65847229
A132: 02---- ADQUISICIÓN DE BIENES Y SERVICIOS | B132: 21891696000 | C132: 1.356172998e+10 | D132: 3890331178 | E132: 3646822112 | F132: 8329966016 | G132: 61.94919747 | H132: 17.77080761 | I132: 16.65847229
A133: Transferencias | B133: 591000000 | C133: 101992700 | D133: 101992700 | E133: 101992700 | F133: 489007300 | G133: 17.25764805 | H133: 17.25764805 | I133: 17.25764805
A134: 03-04-02-012- INCAPACIDADES Y LICENCIAS DE MATERNIDAD Y PATERNIDAD (NO DE PENSIONES) | B134: 195000000 | C134: 101992700 | D134: 101992700 | E134: 101992700 | F134: 93007300 | G134: 52.30394872 | H134: 52.30394872 | I134: 52.30394872
A135: 03-10--- SENTENCIAS Y CONCILIACIONES | B135: 396000000 | C135: 0 | D135: 0 | E135: 0 | F135: 396000000 | G135: 0 | H135: 0 | I135: =IFERROR(IF(E135>0,+E135/B135*100,0),0) -> 0
A136: Gastos por Tributos, Multas, Sanciones e Intereses de Mora | B136: 828675000 | C136: 0 | D136: 0 | E136: 0 | F136: 828675000 | G136: 0 | H136: 0 | I136: 0
A137: 08-01--- IMPUESTOS | B137: 10300000 | C137: 0 | D137: 0 | E137: 0 | F137: 10300000 | G137: 0 | H137: =IFERROR(IF(D137>0,+D137/B137*100,0),0) -> 0 | I137: 0
A138: 08-04-01-- CUOTA DE FISCALIZACIÓN Y AUDITAJE | B138: 818375000 | C138: 0 | D138: 0 | E138: 0 | F138: =+B138-C138 -> 818375000 | G138: =IFERROR(IF(C138>0,+C138/B138*100,0),0) -> 0 | H138: 0 | I138: 0
A139: Inversión | B139: 455420835664 | C139: 2.352950018e+11 | D139: 68157081551 | E139: 68157081551 | F139: 2.201258338e+11 | G139: 51.66540119 | H139: 14.96573635 | I139: 14.96573635
A140: A-Inversión | B140: 455420835664 | C140: 2.352950018e+11 | D140: 68157081551 | E140: 68157081551 | F140: 2.201258338e+11 | G140: 51.66540119 | H140: 14.96573635 | I140: 14.96573635
A141: 1705-1100-6-10106B- 1. ORDENAMIENTO DEL TERRITORIO ALREDEDOR DEL AGUA Y JUSTICIA AMBIENTAL / B. COORDINACIÓN INSTITUCIONAL PARA OPTIMIZAR LA FORMALIZACIÓN | B141: 165972546289 | C141: 7.050089984e+10 | D141: 2.136661057e+10 | E141: 2.136661057e+10 | F141: 9.547164645e+10 | G141: 42.47744667 | H141: 12.87358123 | I141: 12.87358123
A142: 1705-1100-7-10106A- 1. ORDENAMIENTO DEL TERRITORIO ALREDEDOR DEL AGUA Y JUSTICIA AMBIENTAL / A. ACCESO Y FORMALIZACIÓN DE LA PROPIEDAD | B142: 548400710 | C142: 0 | D142: 0 | E142: 0 | F142: 548400710 | G142: 0 | H142: 0 | I142: 0
A143: 1705-1100-8-10106A- 1. ORDENAMIENTO DEL TERRITORIO ALREDEDOR DEL AGUA Y JUSTICIA AMBIENTAL / A. ACCESO Y FORMALIZACIÓN DE LA PROPIEDAD | B143: 132208667815 | C143: 37708963794 | D143: 5341411608 | E143: 5341411608 | F143: 94499704021 | G143: 28.52230827 | H143: 4.040137229 | I143: 4.040137229
A144: 1705-1100-9-10106A- 1. ORDENAMIENTO DEL TERRITORIO ALREDEDOR DEL AGUA Y JUSTICIA AMBIENTAL / A. ACCESO Y FORMALIZACIÓN DE LA PROPIEDAD | B144: 115908898130 | C144: 9.185789085e+10 | D144: 2.862451572e+10 | E144: 2.862451572e+10 | F144: 2.405100728e+10 | G144: 79.25007685 | H144: 24.69570169 | I144: 24.69570169
A145: 1799-1100-1-10106A- 1. ORDENAMIENTO DEL TERRITORIO ALREDEDOR DEL AGUA Y JUSTICIA AMBIENTAL / A. ACCESO Y FORMALIZACIÓN DE LA PROPIEDAD | B145: 40782322720 | C145: 3.522724736e+10 | D145: 1.282454366e+10 | E145: 1.282454366e+10 | F145: 5555075360 | G145: 86.37871757 | H145: 31.44632969 | I145: 31.44632969
A146: 171700 Agencia Nacional de Tierras - ANT | B146: 1718183524174 | C146: 4.747273725e+11 | D146: 8.318427289e+10 | E146: 8.263741523e+10 | F146: 1.243456152e+12 | G146: 27.629608 | H146: 4.841407901 | I146: 4.809580238
A147: Funcionamiento | B147: 82539448000 | C147: 3.316194798e+10 | D147: 1.62535417e+10 | E147: 1.571223016e+10 | F147: 4.937750002e+10 | G147: 40.1770896 | H147: 19.69184687 | I147: 19.03602524
A148: Gastos de Personal | B148: 36986271000 | C148: 9371565368 | D148: 9371016561 | E148: 8874622917 | F148: 27614705632 | G148: 25.3379568 | H148: 25.33647299 | I148: 23.99437055
A149: 01-01-01-- SALARIO | B149: 24671812000 | C149: 6176084963 | D149: 6175536156 | E149: 6175536156 | F149: 18495727037 | G149: 25.03296054 | H149: 25.03073611 | I149: 25.03073611
A150: 01-01-02-- CONTRIBUCIONES INHERENTES A LA NÓMINA | B150: 9015066000 | C150: 2503288934 | D150: 2503288934 | E150: 2006895290 | F150: 6511777066 | G150: 27.76783813 | H150: 27.76783813 | I150: 22.26157069
A151: 01-01-03-- REMUNERACIONES NO CONSTITUTIVAS DE FACTOR SALARIAL | B151: 3299393000 | C151: 692191471 | D151: 692191471 | E151: 692191471 | F151: 2607201529 | G151: 20.97935805 | H151: 20.97935805 | I151: 20.97935805
A152: Adquisición de Bienes y Servicios | B152: 38496161000 | C152: 2.35662465e+10 | D152: 6664271295 | E152: 6619353391 | F152: 1.49299145e+10 | G152: 61.2171341 | H152: 17.31152178 | I152: 17.19484026
A153: 02---- ADQUISICIÓN DE BIENES Y SERVICIOS | B153: 38496161000 | C153: 2.35662465e+10 | D153: 6664271295 | E153: 6619353391 | F153: 1.49299145e+10 | G153: 61.2171341 | H153: 17.31152178 | I153: 17.19484026
A154: Transferencias | B154: 4215672000 | C154: 24237244 | D154: 18354984 | E154: 18354984 | F154: 4191434756 | G154: 0.5749319207 | H154: 0.4353987692 | I154: 0.4353987692
A155: 03-04-02-012- INCAPACIDADES Y LICENCIAS DE MATERNIDAD Y PATERNIDAD (NO DE PENSIONES) | B155: 143556000 | C155: 24237244 | D155: 18354984 | E155: 18354984 | F155: 119318756 | G155: 16.88347683 | H155: 12.78593998 | I155: 12.78593998
A156: 03-10--- SENTENCIAS Y CONCILIACIONES | B156: 4072116000 | C156: 0 | D156: 0 | E156: 0 | F156: 4072116000 | G156: 0 | H156: 0 | I156: 0
A157: Gastos por Tributos, Multas, Sanciones e Intereses de Mora | B157: 2841344000 | C157: 199898864 | D157: 199898864 | E157: 199898864 | F157: 2641445136 | G157: 7.035362983 | H157: 7.035362983 | I157: 7.035362983
A158: 08-01--- IMPUESTOS | B158: 200344000 | C158: 199898864 | D158: 199898864 | E158: 199898864 | F158: 445136 | G158: 99.77781416 | H158: 99.77781416 | I158: 99.77781416
A159: 08-04-01-- CUOTA DE FISCALIZACIÓN Y AUDITAJE | B159: 2641000000 | C159: 0 | D159: 0 | E159: 0 | F159: 2641000000 | G159: 0 | H159: 0 | I159: 0
A160: Inversión | B160: 1635644076174 | C160: 4.415654245e+11 | D160: 66930731188 | E160: 66925185076 | F160: 1.194078652e+12 | G160: 26.99642489 | H160: 4.092010735 | I160: 4.091671657
A161: A-Inversión | B161: 1635644076174 | C161: 4.415654245e+11 | D161: 66930731188 | E161: 66925185076 | F161: 1.194078652e+12 | G161: 26.99642489 | H161: 4.092010735 | I161: 4.091671657
A162: 1799-1100-9-53105B- 5. CONVERGENCIA REGIONAL / B. ENTIDADES PÚBLICAS TERRITORIALES Y NACIONALES FORTALECIDAS | B162: 13297004342 | C162: 2799398149 | D162: 383161991 | E162: 383161991 | F162: 10497606193 | G162: 21.05284827 | H162: 2.881566262 | I162: 2.881566262
A163: 1704-1100-19-10106A- 1. ORDENAMIENTO DEL TERRITORIO ALREDEDOR DEL AGUA Y JUSTICIA AMBIENTAL / A. ACCESO Y FORMALIZACIÓN DE LA PROPIEDAD | B163: 234474550204 | C163: 44912332845 | D163: 2625410956 | E163: 2625410956 | F163: 189562217359 | G163: 19.15445954 | H163: 1.119699752 | I163: 1.119699752
A164: 1704-1100-20-10106A- 1. ORDENAMIENTO DEL TERRITORIO ALREDEDOR DEL AGUA Y JUSTICIA AMBIENTAL / A. ACCESO Y FORMALIZACIÓN DE LA PROPIEDAD | B164: 234474550204 | C164: 13792490839 | D164: 2031616022 | E164: 2031616022 | F164: 220682059365 | G164: 5.8822976 | H164: 0.8664548117 | I164: 0.8664548117
A165: 1704-1100-21-10106A- 1. ORDENAMIENTO DEL TERRITORIO ALREDEDOR DEL AGUA Y JUSTICIA AMBIENTAL / A. ACCESO Y FORMALIZACIÓN DE LA PROPIEDAD | B165: 21474642609 | C165: 8037969144 | D165: 2209291436 | E165: 2209291436 | F165: 13436673465 | G165: 37.4300485 | H165: 10.28790782 | I165: 10.28790782
A166: 1704-1100-21-53105B- 5. CONVERGENCIA REGIONAL / B. ENTIDADES PÚBLICAS TERRITORIALES Y NACIONALES FORTALECIDAS | B166: 22880803075 | C166: 12392082055 | D166: 0 | E166: 0 | F166: 10488721020 | G166: 54.15929683 | H166: 0 | I166: 0
A167: 1704-1100-22-10106A- 1. ORDENAMIENTO DEL TERRITORIO ALREDEDOR DEL AGUA Y JUSTICIA AMBIENTAL / A. ACCESO Y FORMALIZACIÓN DE LA PROPIEDAD | B167: 80504875079 | C167: 40070973468 | D167: 8764363221 | E167: 8761114235 | F167: 40433901611 | G167: 49.77459244 | H167: 10.88674843 | I167: 10.88271266
A168: 1704-1100-23-10106A- 1. ORDENAMIENTO DEL TERRITORIO ALREDEDOR DEL AGUA Y JUSTICIA AMBIENTAL / A. ACCESO Y FORMALIZACIÓN DE LA PROPIEDAD | B168: 89207995636 | C168: 42110338397 | D168: 10637838932 | E168: 10635541806 | F168: 47097657239 | G168: 47.20466826 | H168: 11.9247595 | I168: 11.92218447
A169: 1704-1100-25-10106A- 1. ORDENAMIENTO DEL TERRITORIO ALREDEDOR DEL AGUA Y JUSTICIA AMBIENTAL / A. ACCESO Y FORMALIZACIÓN DE LA PROPIEDAD | B169: 844912995955 | C169: 2.534579551e+11 | D169: 35233897003 | E169: 35233897003 | F169: 5.914550408e+11 | G169: 29.99811298 | H169: 4.170121323 | I169: 4.170121323
A170: 1799-1100-10-53105B- 5. CONVERGENCIA REGIONAL / B. ENTIDADES PÚBLICAS TERRITORIALES Y NACIONALES FORTALECIDAS | B170: 29416659070 | C170: 15590536034 | D170: 5045151626 | E170: 5045151626 | F170: 13826123036 | G170: 52.99900304 | H170: 17.15066151 | I170: 17.15066151
A171: 1704-1100-19-10106AZ- 1. ORDENAMIENTO DEL TERRITORIO ALREDEDOR DEL AGUA Y JUSTICIA AMBIENTAL / A. ACCESO Y FORMALIZACIÓN DE LA PROPIEDAD / Z. ECI CATATUMBO | B171: 15000000000 | C171: 76500000 | D171: 0 | E171: 0 | F171: 14923500000 | G171: 0.51 | H171: 0 | I171: 0
A172: 1704-1100-23-10106AZ- 1. ORDENAMIENTO DEL TERRITORIO ALREDEDOR DEL AGUA Y JUSTICIA AMBIENTAL / A. ACCESO Y FORMALIZACIÓN DE LA PROPIEDAD / Z. ECI CATATUMBO | B172: 15000000000 | C172: 664700 | D172: 0 | E172: 0 | F172: 14999335300 | G172: 0.004431333333 | H172: 0 | I172: 0
A173: 1704-1100-25-10106AZ- 1. ORDENAMIENTO DEL TERRITORIO ALREDEDOR DEL AGUA Y JUSTICIA AMBIENTAL / A. ACCESO Y FORMALIZACIÓN DE LA PROPIEDAD / Z. ECI CATATUMBO | B173: 35000000000 | C173: 8324183725 | D173: 0 | E173: 0 | F173: 26675816275 | G173: 23.78338207 | H173: 0 | I173: 0
A174: 171800 Agencia de Desarrollo Rural - ADR | B174: 761700198345 | C174: 9.485303358e+10 | D174: 3.137588141e+10 | E174: 3.003777903e+10 | F174: 6.668471648e+11 | G174: 12.45280411 | H174: 4.119190395 | I174: 3.943517291
A175: Funcionamiento | B175: 57526196000 | C175: 2.107352639e+10 | D175: 1.162397743e+10 | E175: 1.161133469e+10 | F175: 3.645266961e+10 | G175: 36.63292179 | H175: 20.20640723 | I175: 20.18442987
A176: Gastos de Personal | B176: 21987041000 | C176: 4739651383 | D176: 4739651383 | E176: 4739651383 | F176: 17247389617 | G176: 21.55656772 | H176: 21.55656772 | I176: 21.55656772
A177: 01-01-01-- SALARIO | B177: 15110970000 | C177: 3055105154 | D177: 3055105154 | E177: 3055105154 | F177: 12055864846 | G177: 20.21779644 | H177: 20.21779644 | I177: 20.21779644
A178: 01-01-02-- CONTRIBUCIONES INHERENTES A LA NÓMINA | B178: 1199287000 | C178: 1167068180 | D178: 1167068180 | E178: 1167068180 | F178: 32218820 | G178: 97.31350211 | H178: 97.31350211 | I178: 97.31350211
A179: 01-01-03-- REMUNERACIONES NO CONSTITUTIVAS DE FACTOR SALARIAL | B179: 5676784000 | C179: 517478049 | D179: 517478049 | E179: 517478049 | F179: 5159305951 | G179: 9.11569031 | H179: 9.11569031 | I179: 9.11569031
A180: Adquisición de Bienes y Servicios | B180: 29292596000 | C180: 1.507483216e+10 | D180: 5625283195 | E180: 5612640454 | F180: 1.421776384e+10 | G180: 51.4629436 | H180: 19.20377147 | I180: 19.16061128
A181: 02---- ADQUISICIÓN DE BIENES Y SERVICIOS | B181: 29292596000 | C181: 1.507483216e+10 | D181: 5625283195 | E181: 5612640454 | F181: 1.421776384e+10 | G181: 51.4629436 | H181: 19.20377147 | I181: 19.16061128
A182: Transferencias | B182: 3996559000 | C182: 6243702 | D182: 6243702 | E182: 6243702 | F182: 3990315298 | G182: 0.1562269442 | H182: 0.1562269442 | I182: 0.1562269442
A183: 03-03-01-999- OTRAS TRANSFERENCIAS - DISTRIBUCIÓN PREVIO CONCEPTO DGPPN | B183: 261798000 | C183: 0 | D183: 0 | E183: 0 | F183: 261798000 | G183: 0 | H183: 0 | I183: 0
A184: 03-04-02-012- INCAPACIDADES Y LICENCIAS DE MATERNIDAD Y PATERNIDAD (NO DE PENSIONES) | B184: 145545000 | C184: 6243702 | D184: 6243702 | E184: 6243702 | F184: 139301298 | G184: 4.289877358 | H184: 4.289877358 | I184: 4.289877358
A185: 03-10--- SENTENCIAS Y CONCILIACIONES | B185: 3589216000 | C185: 0 | D185: 0 | E185: 0 | F185: 3589216000 | G185: 0 | H185: 0 | I185: 0
A186: Gastos por Tributos, Multas, Sanciones e Intereses de Mora | B186: 2250000000 | C186: 1252799148 | D186: 1252799148 | E186: 1252799148 | F186: 997200852 | G186: 55.67996213 | H186: 55.67996213 | I186: 55.67996213
A187: 08-01--- IMPUESTOS | B187: 250000000 | C187: 185011350 | D187: 185011350 | E187: 185011350 | F187: 64988650 | G187: 74.00454 | H187: 74.00454 | I187: 74.00454
A188: 08-04-01-- CUOTA DE FISCALIZACIÓN Y AUDITAJE | B188: 2000000000 | C188: 1067787798 | D188: 1067787798 | E188: 1067787798 | F188: 932212202 | G188: 53.3893899 | H188: 53.3893899 | I188: 53.3893899
A189: Inversión | B189: 704174002345 | C189: 7.377950719e+10 | D189: 1.975190398e+10 | E189: 1.842644434e+10 | F189: 6.303944952e+11 | G189: 10.477454 | H189: 2.804974895 | I189: 2.616745901
A190: A-Inversión | B190: 704174002345 | C190: 7.377950719e+10 | D190: 1.975190398e+10 | E190: 1.842644434e+10 | F190: 6.303944952e+11 | G190: 10.477454 | H190: 2.804974895 | I190: 2.616745901
A191: 1709-1100-6-30101B- 3. DERECHO HUMANO A LA ALIMENTACIÓN / B. PROVEER ACCESO A FACTORES PRODUCTIVOS EN FORMA OPORTUNA Y SIMULTÁNEA | B191: 36908650863 | C191: 10166201518 | D191: 1663761123 | E191: 1644424222 | F191: 26742449345 | G191: 27.54422413 | H191: 4.507780924 | I191: 4.455389681
A192: 1702-1100-14-30101B- 3. DERECHO HUMANO A LA ALIMENTACIÓN / B. PROVEER ACCESO A FACTORES PRODUCTIVOS EN FORMA OPORTUNA Y SIMULTÁNEA | B192: 347401848886 | C192: 2.272152574e+10 | D192: 5089970279 | E192: 5017134907 | F192: 3.246803231e+11 | G192: 6.540415895 | H192: 1.46515348 | I192: 1.444187739
A193: 1708-1100-5-30101C- 3. DERECHO HUMANO A LA ALIMENTACIÓN / C. SISTEMAS TERRITORIALES DE INNOVACIÓN, FORTALECIMIENTO DEL SISTEMA NACIONAL DE INNOVACIÓN AGROPECUARIA (SNIA) Y MISIÓN DE INVESTIGACIÓN E INNOVACIÓN | B193: 44396720780 | C193: 5019387127 | D193: 1961302055 | E193: 1022203527 | F193: 3.937733365e+10 | G193: 11.30576096 | H193: 4.417673243 | I193: 2.302430245
A194: 1708-1100-5-30101D- 3. DERECHO HUMANO A LA ALIMENTACIÓN / D. EXTENSIÓN TECNOLÓGICA AGROINDUSTRIA | B194: 34745794650 | C194: 0 | D194: 0 | E194: 0 | F194: 34745794650 | G194: 0 | H194: 0 | I194: 0
A195: 1709-1100-7-30101B- 3. DERECHO HUMANO A LA ALIMENTACIÓN / B. PROVEER ACCESO A FACTORES PRODUCTIVOS EN FORMA OPORTUNA Y SIMULTÁNEA | B195: 116422783387 | C195: 1.161631143e+10 | D195: 2000004254 | E195: 1953441875 | F195: 1.04806472e+11 | G195: 9.977696025 | H195: 1.717880466 | I195: 1.677886251
A196: 1799-1100-14-53105B- 5. CONVERGENCIA REGIONAL / B. ENTIDADES PÚBLICAS TERRITORIALES Y NACIONALES FORTALECIDAS | B196: 162970947 | C196: 162970947 | D196: 62605172.62 | E196: 62605172.62 | F196: 0 | G196: 100 | H196: 38.41492841 | I196: 38.41492841
A197: 1799-1100-15-53105B- 5. CONVERGENCIA REGIONAL / B. ENTIDADES PÚBLICAS TERRITORIALES Y NACIONALES FORTALECIDAS | B197: 6658969478 | C197: 2353712358 | D197: 788661151.5 | E197: 782638038.5 | F197: 4305257120 | G197: 35.34649567 | H197: 11.84359163 | I197: 11.7531405
A198: 1799-1100-16-53105B- 5. CONVERGENCIA REGIONAL / B. ENTIDADES PÚBLICAS TERRITORIALES Y NACIONALES FORTALECIDAS | B198: 10237078950 | C198: 674971810 | D198: 249506045 | E198: 249506045 | F198: 9562107140 | G198: 6.593402408 | H198: 2.437277726 | I198: 2.437277726
A199: 1702-1100-16-30101B- 3. DERECHO HUMANO A LA ALIMENTACIÓN / B. PROVEER ACCESO A FACTORES PRODUCTIVOS EN FORMA OPORTUNA Y SIMULTÁNEA | B199: 15339184404 | C199: 6419162603 | D199: 1258987824 | E199: 1252809238 | F199: 8920021801 | G199: 41.84813504 | H199: 8.207658183 | I199: =IFERROR(IF(E199>0,+E199/B199*100,0),0) -> 8.167378428
A200: 1702-1100-17-30201A- 3. DERECHO HUMANO A LA ALIMENTACIÓN / A. DESARROLLO DE REDES AGROLOGÍSTICAS | B200: 44400000000 | C200: 14645263652 | D200: 6677106079 | E200: 6441681315 | F200: 29754736348 | G200: 32.98482805 | H200: 15.0385272 | I200: 14.50829125
... 4686 more rows

Sheet CUA8
A1: CUADRO No. 8
A2: Rezago presupuestal del Presupuesto General de la Nación en 2024
A3: =+'CUA1'!A3:L3 -> Acumulada a Abril 2025
A4: Miles de millones de pesos corrientes
B5: Concepto | C5: Rezago | D5: Pago | E5: Rezago por pagar | F5: Ejecución %
F6: Pago/Rezago
C7: (1) | D7: (2) | E7: (3)=(1-2) | F7: (4)=(2/1)
A8: I. | B8: FUNCIONAMIENTO | C8: 18451.0841 | D8: 11193.6018 | E8: 7257.482304 | F8: 60.66636376
B9: Gastos de Personal | C9: 563.6116947 | D9: 518.9774612 | E9: 44.63423345 | F9: 92.08067649
B10: Adquisición de Bienes y Servicios | C10: 4351.086558 | D10: 3253.898508 | E10: 1097.18805 | F10: 74.78358486
B11: Transferencias | C11: 13192.91198 | D11: 7161.533295 | E11: 6031.378683 | F11: 54.28318863
B12: Gastos de Comercialización y Producción | C12: 319.9530013 | D12: 237.0564803 | E12: 82.89652105 | F12: 74.0910319
B13: Adquisición de Activos Financieros | C13: 5.022183456 | D13: 4.391828114 | E13: 0.6303553415 | F13: 87.44857994
B14: Disminución de Pasivos | C14: 10.93833312 | D14: 10.50732582 | E14: 0.431007296 | F14: 96.059662
B15: Gastos por Tributos, Multas, Sanciones e Intereses de Mora | C15: 7.560354631 | D15: 7.236900856 | E15: 0.323453775 | F15: 95.7217116
A16: II. | B16: SERVICIO DE LA DEUDA | C16: 7773.360726 | D16: 3701.061891 | E16: 4072.298835 | F16: 47.61212069
B17: Servicio de la Deuda Pública Externa | C17: 4028.158345 | D17: 3669.095289 | E17: 359.0630562 | F17: 91.08617325
B18: Principal | C18: 1770.995202 | D18: 1597.329762 | E18: 173.6654403 | F18: 90.19390679
B19: Intereses | C19: 2245.312495 | D19: 2069.383018 | E19: 175.9294771 | F19: 92.16458834
B20: Comisiones y Otros Gastos | C20: 11.85064825 | D20: 2.38250936 | E20: 9.468138887 | F20: 20.10446442
B21: Servicio de la Deuda Pública Interna | C21: 3745.202381 | D21: 31.96660155 | E21: 3713.235779 | F21: 0.8535346904
B22: Principal | C22: 3460.391126 | D22: 1.912810341 | E22: 3458.478315 | F22: 0.05527728721
B23: Intereses | C23: 221.4578363 | D23: 0.01063211703 | E23: 221.4472042 | F23: 0.004800966724
B24: Comisiones y Otros Gastos | C24: 63.35341876 | D24: 30.04315909 | E24: 33.31025967 | F24: 47.4215278
B25: Fondo de Contingencias | C25: 0 | D25: 0 | E25: 0 | F25: 0
A26: III. | B26: INVERSIÓN | C26: 36930.08307 | D26: 18788.14626 | E26: 18141.93681 | F26: 50.87490928
A27: IV. | B27: TOTAL (I + II + III) | C27: 63154.5279 | D27: 33682.80995 | E27: 29471.71795 | F27: 53.33395889
A28: V. | B28: TOTAL SIN DEUDA (I + III) | C28: 55381.16718 | D28: 29981.74806 | E28: 25399.41912 | F28: 54.13708231
A29: Fuente: Dirección General del Presupuesto Público Nacional- Subdirección de Análisis y Consolidación Presupuestal

Sheet CUA9
A1: Cuadro No. 9
A2: Reservas presupuestales del PGN de 2024 que se ejecutan en el 2025
A3: Acumulado a Abril
B5: Concepto | C5: Reservas Presupuestales | D5: Pago | E5: Reservas por pagar | F5: Ejecución %
C6: presupuestal | F6: Pago/Reservas
C7: (1) | D7: (2) | E7: (3)=(1-2) | F7: (4)=(2/1)
A8: I. | B8: FUNCIONAMIENTO | C8: 17938.67978 | D8: 10684.49779 | E8: 7254.181997 | F8: 59.561227 | H8: FUNCIONAMIENTO | I8: 17983.38556 | J8: 7641.612973 | K8: =+I8-C8 -> 44.70577733 | L8: =+J8-D8 -> -3042.884812
B9: Gastos de Personal | C9: 464.16032 | D9: 419.6297897 | E9: 44.53053026 | F9: 90.40621778 | H9: Gastos de Personal | I9: 472.1833077 | J9: 411.8682172 | K9: =+I9-C9 -> 8.022987766 | L9: -7.761572448
B10: Adquisición de Bienes y Servicios | C10: 4161.45293 | D10: 3064.739907 | E10: 1096.713022 | F10: 73.64591067 | H10: Adquisición de Bienes y Servicios | I10: 4195.062752 | J10: 1994.877709 | K10: 33.60982271 | L10: -1069.862198
B11: Transferencias | C11: 13158.21136 | D11: 7129.28586 | E11: 6028.925499 | F11: 54.18126876 | H11: Transferencias | I11: 13160.48377 | J11: 5194.59197 | K11: 2.272414618 | L11: -1934.69389
B12: Gastos de Comercialización y Producción | C12: 136.4465978 | D12: 53.81829807 | E12: 82.62829977 | F12: 39.44275557 | H12: Gastos de Comercialización y Producción | I12: 137.2457628 | J12: 25.8311096 | K12: 0.7991649997 | L12: -27.98718847
B13: Adquisición de Activos Financieros | C13: 4.657729088 | D13: 4.027373746 | E13: 0.6303553415 | F13: 86.46646618 | H13: Adquisición de Activos Financieros | I13: 4.658803368 | J13: 1.947258222 | K13: 0.00107428 | L13: -2.080115524
B14: Disminución de Pasivos | C14: 10.58143075 | D14: 10.15042345 | E14: 0.431007296 | F14: 95.92675786 | H14: Disminución de Pasivos | I14: 10.58143075 | J14: 9.907085626 | K14: 0 | L14: -0.243337823
B15: Gastos por Tributos, Multas, Sanciones e Intereses de Mora | C15: 3.169416815 | D15: 2.846133353 | E15: 0.323283462 | F15: 89.79990702 | H15: Gastos por Tributos, Multas, Sanciones e Intereses de Mora | I15: 3.169729768 | J15: 2.589623018 | K15: 0.00031295381 | L15: -0.256510335
A16: II. | B16: SERVICIO DE LA DEUDA | C16: 7773.360726 | D16: 3701.061891 | E16: 4072.298835 | F16: 47.61212069 | H16: SERVICIO DE LA DEUDA | I16: 7773.360726 | J16: 3030.781278 | K16: 0 | L16: -670.2806125
B17: Servicio de la Deuda Pública Externa | C17: 4028.158345 | D17: 3669.095289 | E17: 359.0630562 | F17: 91.08617325 | H17: Servicio de la Deuda Pública Externa | I17: 4028.158345 | J17: 3007.499599 | K17: 0 | L17: -661.5956903
B18: Principal | C18: 1770.995202 | D18: 1597.329762 | E18: 173.6654403 | F18: 90.19390679 | H18: Principal | I18: 1770.995202 | J18: 1013.069517 | K18: 0 | L18: -584.2602448
B19: Intereses | C19: 2245.312495 | D19: 2069.383018 | E19: 175.9294771 | F19: 92.16458834 | H19: Intereses | I19: 2245.312495 | J19: 1992.455366 | K19: 0 | L19: -76.92765183
B20: Comisiones y Otros Gastos | C20: 11.85064825 | D20: 2.38250936 | E20: 9.468138887 | F20: 20.10446442 | H20: Comisiones y Otros Gastos | I20: 11.85064825 | J20: 1.974715705 | K20: 0 | L20: -0.4077936548
B21: Servicio de la Deuda Pública Interna | C21: 3745.202381 | D21: 31.96660155 | E21: 3713.235779 | F21: 0.8535346904 | H21: Servicio de la Deuda Pública Interna | I21: 3745.202381 | J21: 23.28167934 | K21: 0 | L21: -8.684922212
B22: Principal | C22: 3460.391126 | D22: 1.912810341 | E22: 3458.478315 | F22: 0.05527728721 | H22: Principal | I22: 3460.391126 | J22: 1.912810341 | K22: 0 | L22: 0
B23: Intereses | C23: 221.4578363 | D23: 0.01063211703 | E23: 221.4472042 | F23: 0.004800966724 | H23: Intereses | I23: 221.4578363 | J23: 0.01063211703 | K23: 0 | L23: 0
B24: Comisiones y Otros Gastos | C24: 63.35341876 | D24: 30.04315909 | E24: 33.31025967 | F24: 47.4215278 | H24: Comisiones y Otros Gastos | I24: 63.35341876 | J24: 21.35823688 | K24: 0 | L24: -8.684922212
B25: Fondo de Contingencias | C25: 0 | D25: 0 | E25: 0 | F25: 0 | H25: Fondo de contingencias | I25: 0 | J25: 0 | K25: 0 | L25: 0
A26: III. | B26: INVERSIÓN | C26: 35758.46942 | D26: 17620.68312 | E26: 18137.7863 | F26: 49.27695006 | H26: INVERSIÓN | I26: 35807.45166 | J26: 11011.49149 | K26: 48.98223653 | L26: -6609.191623
A27: IV. | B27: TOTAL (I + II + III) | C27: 61470.50993 | D27: 32006.24279 | E27: 29464.26713 | F27: 52.06763834 | H27: TOTAL (I + II + III) | I27: 61564.19794 | J27: 21683.88575 | K27: 93.68801385 | L27: -10322.35705
A28: V. | B28: TOTAL SIN DEUDA (I + III) | C28: 53697.1492 | D28: 28305.1809 | E28: 25391.9683 | F28: 52.71263247 | H28: TOTAL SIN DEUDA (I + III) | I28: 53790.83722 | J28: 18653.10447 | K28: 93.68801385 | L28: -9652.076435
A29: Fuente: Dirección General del Presupuesto Público Nacional-Subdirección de Análisis y Consolidación Presupuestal

Sheet CUA10
A1: Cuadro No. 10
A2: Cuentas por pagar del PGN de 2024 que se ejecutan en el 2025
A3: Acumulado a abril 2025
A4: Miles de millones de pesos corrientes
B5: Concepto | C5: Cuentas por Pagar | D5: Pago | E5: Cuentas sin pagar | F5: Ejecución %
F6: Pago/Cuentas
C7: (1) | D7: (2) | E7: (3)=(1-2) | F7: (4)=(2/1)
A8: I. | B8: FUNCIONAMIENTO | C8: 512.4043202 | D8: 509.1040141 | E8: 3.300306164 | F8: 99.35591758 | H8: 408.4120593 | I8: 406.2075617 | J8: =+H8-C8 -> -103.9922609 | K8: =+I8-D8 -> -102.8964524
B9: Gastos de Personal | C9: 99.45137473 | D9: 99.34767154 | E9: 0.10370319 | F9: 99.89572473 | H9: 33.03304575 | I9: 33.01139416 | J9: =+H9-C9 -> -66.41832898 | K9: -66.33627738
B10: Adquisición de Bienes y Servicios | C10: 189.6336282 | D10: 189.158601 | E10: 0.4750271611 | F10: 99.74950268 | H10: 198.9744317 | I10: 198.9727557 | J10: 9.340803579 | K10: 9.814154673
B11: Transferencias | C11: 34.70061933 | D11: 32.24743511 | E11: 2.453184222 | F11: 92.93043101 | H11: 62.47458135 | I11: 60.39344836 | J11: 27.77396202 | K11: 28.14601325
B12: Gastos de Comercialización y Producción | C12: 183.5064035 | D12: 183.2381822 | E12: 0.268221278 | F12: 99.85383547 | H12: 107.6569445 | I12: 107.6569445 | J12: -75.84945896 | K12: -75.58123768
B13: Adquisición de Activos Financieros | C13: 0.3644543681 | D13: 0.3644543681 | E13: 0 | F13: 100 | H13: 4.3205215 | I13: 4.2205215 | J13: 3.956067132 | K13: 3.856067132
B14: Disminución de Pasivos | C14: 0.3569023729 | D14: 0.3569023729 | E14: 0 | F14: 100 | H14: 1.60507165 | I14: 1.60503464 | J14: 1.248169277 | K14: 1.248132267
B15: Gastos por Tributos, Multas, Sanciones e Intereses de Mora | C15: 4.390937816 | D15: 4.390767503 | E15: 0.000170313 | F15: 99.99612126 | H15: 0.34746281 | I15: 0.34746281 | J15: -4.043475006 | K15: -4.043304693
A16: II. | B16: SERVICIO DE LA DEUDA | C16: 0 | D16: 0 | E16: 0 | F16: 0 | H16: 6.736498228 | I16: 6.736498228 | J16: 6.736498228 | K16: 6.736498228
B17: Servicio de la Deuda Pública Externa | C17: 0 | D17: 0 | E17: 0 | F17: 0 | H17: 0 | I17: 0 | J17: 0 | K17: 0
B18: Principal | C18: 0 | D18: 0 | E18: 0 | F18: 0 | H18: 0 | I18: 0 | J18: 0 | K18: 0
B19: Intereses | C19: 0 | D19: 0 | E19: 0 | F19: 0 | H19: 0 | I19: 0 | J19: 0 | K19: 0
B20: Comisiones y Otros Gastos | C20: 0 | D20: 0 | E20: 0 | F20: 0 | H20: 0 | I20: 0 | J20: 0 | K20: 0
B21: Servicio de la Deuda Pública Interna | C21: 0 | D21: 0 | E21: 0 | F21: 0 | H21: 6.736498228 | I21: 6.736498228 | J21: 6.736498228 | K21: 6.736498228
B22: Principal | C22: 0 | D22: 0 | E22: 0 | F22: 0 | H22: 0 | I22: 0 | J22: 0 | K22: 0
B23: Intereses | C23: 0 | D23: 0 | E23: 0 | F23: 0 | H23: 0 | I23: 0 | J23: 0 | K23: 0
B24: Comisiones y Otros Gastos | C24: 0 | D24: 0 | E24: 0 | F24: 0 | H24: 0 | I24: 0 | J24: 0 | K24: 0
B25: Fondo de Contingencias | C25: 0 | D25: 0 | E25: 0 | F25: 0 | H25: 6.736498228 | I25: 6.736498228 | J25: 6.736498228 | K25: 6.736498228
A26: III. | B26: INVERSIÓN | C26: 1171.613655 | D26: 1167.463141 | E26: 4.150513503 | F26: 99.64574384 | H26: 621.5026668 | I26: 621.4521532 | J26: -550.1109879 | K26: -546.010988
A27: IV. | B27: TOTAL (I + II + III) | C27: 1684.017975 | D27: 1676.567155 | E27: 7.450819668 | F27: 99.557557 | H27: 1036.651224 | I27: 1034.396213 | J27: -647.3667506 | K27: -642.1709422
A28: V. | B28: TOTAL SIN DEUDA (I + II) | C28: 1684.017975 | D28: 1676.567155 | E28: 7.450819668 | F28: 99.557557 | H28: 1029.914726 | I28: 1027.659715 | J28: -654.1032488 | K28: -648.9074404
A29: Fuente: Dirección General del Presupuesto Público Nacional- Subdirección de Análisis y Consolidación Presupuestal
